Workbook

Sheet 貨物１（１）（２）
A1: １．機関別貨物輸送量の推移
A3: （１） 北海道内（相互間）機関別輸送量の推移
AF4: （単位：千トン、％）
A5: 区分 | E5: 鉄 道 | N5: 自 動 車 | W5: 内航海運 | Z5: 航 空 | AC5: 合 計 | AF5: 前年度 対比
A6: 年度 | E6: Ｊ Ｒ | H6: ＪＲ以外 の鉄道 | K6: 計 | N6: 営 業 用 | Q6: 自 家 用 | T6: 計
A7: ３０ | E7: 316 | H7: 129 | K7: 445 | N7: 203658 | Q7: 33686 | T7: 237344 | W7: 7263 | Z7: 1 | AC7: 245053 | AF7: 98.38206542
E8: （ | F8: =E7/AC7*100 -> 0.1289516962 | G8: ） | H8: （ | I8: =H7/AC7*100 -> 0.05264167343 | J8: ） | K8: （ | L8: =K7/AC7*100 -> 0.1815933696 | M8: ） | N8: （ | O8: =N7/AC7*100 -> 83.10773588 | P8: ） | Q8: （ | R8: =Q7/AC7*100 -> 13.74641404 | S8: ） | T8: （ | U8: =T7/AC7*100 -> 96.85414992 | V8: ） | W8: （ | X8: =W7/AC7*100 -> 2.963848637 | Y8: ） | Z8: （ | AA8: =Z7/AC7*100 -> 0.0004080749879 | AB8: ） | AC8: （ | AD8: =AC7/AC7*100 -> 100 | AE8: ）
A9: 元 | E9: 279 | H9: 0 | K9: 279 | N9: 199104 | Q9: 32619 | T9: 231723 | W9: 6904 | Z9: 1 | AC9: 238907 | AF9: 97.49197112
E10: （ | F10: =E9/AC9*100 -> 0.116781844 | G10: ） | H10: （ | I10: =H9/AC9*100 -> 0 | J10: ） | K10: （ | L10: =K9/AC9*100 -> 0.116781844 | M10: ） | N10: （ | O10: =N9/AC9*100 -> 83.33954216 | P10: ） | Q10: （ | R10: =Q9/AC9*100 -> 13.65343 | S10: ） | T10: （ | U10: =T9/AC9*100 -> 96.99297216 | V10: ） | W10: （ | X10: =W9/AC9*100 -> 2.889827422 | Y10: ） | Z10: （ | AA10: =Z9/AC9*100 -> 0.0004185729175 | AB10: ） | AC10: （ | AD10: =AC9/AC9*100 -> 100 | AE10: ）
A11: 2 | E11: 271 | H11: 0 | K11: 271 | N11: 171898 | Q11: 32855 | T11: 204753 | W11: 6536 | Z11: 1 | AC11: 211561 | AF11: 88.553705
E12: （ | F12: =E11/AC11*100 -> 0.1280954429 | G12: ） | H12: （ | I12: =H11/AC11*100 -> 0 | J12: ） | K12: （ | L12: =K11/AC11*100 -> 0.1280954429 | M12: ） | N12: （ | O12: =N11/AC11*100 -> 81.25221567 | P12: ） | Q12: （ | R12: =Q11/AC11*100 -> 15.52979992 | S12: ） | T12: （ | U12: =T11/AC11*100 -> 96.78201559 | V12: ） | W12: （ | X12: =W11/AC11*100 -> 3.089416291 | Y12: ） | Z12: （ | AA12: =Z11/AC11*100 -> 0.0004726769112 | AB12: ） | AC12: （ | AD12: =AC11/AC11*100 -> 100 | AE12: ）
A13: 3 | E13: 270 | H13: 0 | K13: 270 | N13: 162155 | Q13: 34234 | T13: 196389 | W13: 6989 | Z13: 1 | AC13: 203649 | AF13: 96.26018028
E14: （ | F14: =E13/AC13*100 -> 0.1325810586 | G14: ） | H14: （ | I14: =H13/AC13*100 -> 0 | J14: ） | K14: （ | L14: =K13/AC13*100 -> 0.1325810586 | M14: ） | N14: （ | O14: =N13/AC13*100 -> 79.6247465 | P14: ） | Q14: （ | R14: =Q13/AC13*100 -> 16.81029615 | S14: ） | T14: （ | U14: =T13/AC13*100 -> 96.43504265 | V14: ） | W14: （ | X14: =W13/AC13*100 -> 3.431885254 | Y14: ） | Z14: （ | AA14: =Z13/AC13*100 -> 0.0004910409577 | AB14: ） | AC14: （ | AD14: =AC13/AC13*100 -> 100 | AE14: ）
A15: 4 | E15: 279 | H15: 0 | K15: 279 | N15: 202839 | Q15: 31289 | T15: 234128 | W15: 6864 | Z15: 1 | AC15: 241272 | AF15: 118.474434
E16: （ | F16: =E15/AC15*100 -> 0.1156371232 | G16: ） | H16: （ | I16: =H15/AC15*100 -> 0 | J16: ） | K16: （ | L16: =K15/AC15*100 -> 0.1156371232 | M16: ） | N16: （ | O16: =N15/AC15*100 -> 84.07067542 | P16: ） | Q16: （ | R16: =Q15/AC15*100 -> 12.96835107 | S16: ） | T16: （ | U16: =T15/AC15*100 -> 97.03902649 | V16: ） | W16: （ | X16: =W15/AC15*100 -> 2.844921914 | Y16: ） | Z16: （ | AA16: =Z15/AC15*100 -> 0.0004144699758 | AB16: ） | AC16: （ | AD16: =AC15/AC15*100 -> 100 | AE16: ）
A17: 5 | E17: 248 | H17: 0 | K17: =SUM(E17:J17) -> 248 | N17: 163681 | Q17: 31289 | T17: =SUM(N17:S17) -> 194970 | W17: 6335 | Z17: 1 | AC17: =K17+SUM(T17:AB17) -> 201554 | AF17: =AC17/AC15*100 -> 83.5380815
E18: （ | F18: =E17/AC17*100 -> 0.1230439485 | G18: ） | H18: （ | I18: =H17/AC17*100 -> 0 | J18: ） | K18: （ | L18: =K17/AC17*100 -> 0.1230439485 | M18: ） | N18: （ | O18: =N17/AC17*100 -> 81.20950217 | P18: ） | Q18: （ | R18: =Q17/AC17*100 -> 15.52387946 | S18: ） | T18: （ | U18: =T17/AC17*100 -> 96.73338162 | V18: ） | W18: （ | X18: =W17/AC17*100 -> 3.143078282 | Y18: ） | Z18: （ | AA18: =Z17/AC17*100 -> 0.0004961449537 | AB18: ） | AC18: （ | AD18: =AC17/AC17*100 -> 100 | AE18: ）
A19: =A17&"/"&A7 -> 5/３０ | E19: =E17/E7*100 -> 78.48101266 | H19: =H17/H7*100 -> 0 | K19: =K17/K7*100 -> 55.73033708 | N19: =N17/N7*100 -> 80.37052313 | Q19: =Q17/Q7*100 -> 92.88428427 | T19: =T17/T7*100 -> 82.14658892 | W19: =W17/W7*100 -> 87.22291064 | Z19: =Z17/Z7*100 -> 100 | AC19: =AC17/AC7*100 -> 82.2491461
A22: （注） | E22: １． ＪＲは「貨物・旅客地域流動調査」、ＪＲ以外の鉄道は北海道運輸局資料、
E23: 自動車は「自動車輸送統計年報」、内航海運は「港湾統計流動表」、航空は「航空輸送統計年報」による
E24: ２． 自動車は、特種（殊）用途車を除く数値
E25: ３． 内航海運は暦年の数値で、単位は千フレート・トン
E26: ４． （ ）内数値は、輸送機関別シェア
E27: ="５． "&A19&"は平成"&A7&"年度を１００と表している" -> ５． 5/３０は平成３０年度を１００と表している
A29: （２） 道内－道外間機関別輸送量の推移
V30: （単位：千トン、％）
A31: 区分 | E31: Ｊ Ｒ | H31: 内航海運 | K31: フ ェ リ ー | N31: 航 空 | Q31: 合 計 | T31: 前年度対比
A32: 年度
A33: =$A$7 -> ３０ | E33: 4303 | H33: 49510 | K33: 4469 | N33: 184 | Q33: =SUM(E33+H33+K33+N33) -> 58466 | T33: 96.13430455
E34: （ | F34: =E33/Q33*100 -> 7.359833065 | G34: ） | H34: （ | I34: =H33/Q33*100 -> 84.68169534 | J34: ） | K34: （ | L34: =K33/Q33*100 -> 7.643758766 | M34: ） | N34: （ | O34: =N33/Q33*100 -> 0.3147128245 | P34: ） | Q34: （ | R34: =SUM(F34+I34+L34+O34) -> 100 | S34: ）
A35: =$A$9 -> 元 | E35: 4189 | H35: 45426 | K35: 6953 | N35: 170 | Q35: =SUM(E35+H35+K35+N35) -> 56738 | T35: =Q35/Q33*100 -> 97.04443608
E36: （ | F36: =E35/Q35*100 -> 7.383058973 | G36: ） | H36: （ | I36: =H35/Q35*100 -> 80.06274455 | J36: ） | K36: （ | L36: =K35/Q35*100 -> 12.25457365 | M36: ） | N36: （ | O36: =N35/Q35*100 -> 0.2996228277 | P36: ） | Q36: （ | R36: =SUM(F36+I36+L36+O36) -> 100 | S36: ）
A37: =$A$11 -> 2 | E37: 4045 | H37: 42627 | K37: 4027 | N37: 96 | Q37: =SUM(E37+H37+K37+N37) -> 50795 | T37: =Q37/Q35*100 -> 89.52553844
E38: （ | F38: =E37/Q37*100 -> 7.963382223 | G38: ） | H38: （ | I38: =H37/Q37*100 -> 83.91967713 | J38: ） | K38: （ | L38: =K37/Q37*100 -> 7.927945664 | M38: ） | N38: （ | O38: =N37/Q37*100 -> 0.1889949798 | P38: ） | Q38: （ | R38: =SUM(F38+I38+L38+O38) -> 100 | S38: ）
A39: =$A$13 -> 3 | E39: 3868 | H39: 41990 | K39: 2297 | N39: 110 | Q39: =SUM(E39+H39+K39+N39) -> 48265 | T39: =Q39/Q37*100 -> 95.0191948
E40: （ | F40: =E39/Q39*100 -> 8.014088884 | G40: ） | H40: （ | I40: =H39/Q39*100 -> 86.99886046 | J40: ） | K40: （ | L40: =K39/Q39*100 -> 4.759142236 | M40: ） | N40: （ | O40: =N39/Q39*100 -> 0.2279084223 | P40: ） | Q40: （ | R40: =SUM(F40+I40+L40+O40) -> 100 | S40: ）
A41: =$A$15 -> 4 | E41: 3778 | H41: 41640 | K41: 2438 | N41: 109 | Q41: =SUM(E41+H41+K41+N41) -> 47965 | T41: =Q41/Q39*100 -> 99.37843158
E42: （ | F42: =E41/Q41*100 -> 7.87657667 | G42: ） | H42: （ | I42: =H41/Q41*100 -> 86.81330137 | J42: ） | K42: （ | L42: =K41/Q41*100 -> 5.082872928 | M42: ） | N42: （ | O42: =N41/Q41*100 -> 0.2272490358 | P42: ） | Q42: （ | R42: =SUM(F42+I42+L42+O42) -> 100 | S42: ）
A43: =$A$17 -> 5 | E43: 3788 | H43: 40217 | K43: 2659 | N43: 123 | Q43: =SUM(E43+H43+K43+N43) -> 46787 | T43: =Q43/Q41*100 -> 97.54404253
E44: （ | F44: =E43/Q43*100 -> 8.096266057 | G44: ） | H44: （ | I44: =H43/Q43*100 -> 85.95763781 | J44: ） | K44: （ | L44: =K43/Q43*100 -> 5.683202599 | M44: ） | N44: （ | O44: =N43/Q43*100 -> 0.2628935388 | P44: ） | Q44: （ | R44: =SUM(F44+I44+L44+O44) -> 100 | S44: ）
A45: =$A$19 -> 5/３０ | E45: =E43/E33*100 -> 88.03160586 | H45: =H43/H33*100 -> 81.23005453 | K45: =K43/K33*100 -> 59.4987693 | N45: =N43/N33*100 -> 66.84782609 | Q45: =Q43/Q33*100 -> 80.02428762
A48: （注） | E48: １． ＪＲ、フェリーは「貨物・旅客地域流動調査」、内航海運は「港湾統計流動表」、航空は「航空輸送統計年報」による
E49: ２． （ ）内は輸送機関別シェア
E50: ３． 内航海運は暦年の数値で、単位は千フレート・トン
E51: ４． フェリーとは、フェリーで運ばれたトラックの積載貨物トン数
E52: ="５． "&A45&"は平成"&A33&"年度を１００と表している" -> ５． 5/３０は平成３０年度を１００と表している

Sheet 貨物２．
A1: ２．品目別地域別貨物輸送量（令和５年度）
L4: （単位：千トン、％）
B5: 区 分 | C5: 道 内 | G5: 移 出 | K5: 移 入
A6: 品目別 | C6: 鉄 道 | D6: 海 運 | E6: 自 動 車 | F6: 計 | G6: 鉄 道 | H6: 海 運 | I6: 自 動 車 | J6: 計 | K6: 鉄 道 | L6: 海 運 | M6: 自 動 車 | N6: 計
A7: 農水産品 | C7: 0 | D7: 222 | E7: 31845 | F7: =SUM(C7:E8) -> 32067 | G7: 0 | H7: 1361 | I7: 323 | J7: =SUM(G7:I8) -> 1684 | K7: 0 | L7: 758 | M7: 207 | N7: =SUM(K7:M8) -> 965
A9: 林産品 | C9: 0 | D9: 3 | E9: 7395 | F9: =SUM(C9:E10) -> 7398 | G9: 0 | H9: 491 | I9: 52 | J9: =SUM(G9:I10) -> 543 | K9: 0 | L9: 441 | M9: 9 | N9: =SUM(K9:M10) -> 450
A11: 鉱産品 | C11: 0 | D11: 2107 | E11: 58746 | F11: =SUM(C11:E12) -> 60853 | G11: 0 | H11: 2596 | I11: 0 | J11: =SUM(G11:I12) -> 2596 | K11: 0 | L11: 3377 | M11: 0 | N11: =SUM(K11:M12) -> 3377
A13: 金属・ 機械工業品 | C13: 0 | D13: 348 | E13: 19013 | F13: =SUM(C13:E14) -> 19361 | G13: 0 | H13: 6256 | I13: 43 | J13: =SUM(G13:I14) -> 6299 | K13: 0 | L13: 6766 | M13: 56 | N13: =SUM(K13:M14) -> 6822
A15: 化学工業品 | C15: 0 | D15: 3913 | E15: 33503 | F15: =SUM(C15:E16) -> 37416 | G15: 0 | H15: 4192 | I15: 0 | J15: =SUM(G15:I16) -> 4192 | K15: 0 | L15: 6549 | M15: 51 | N15: =SUM(K15:M16) -> 6600
A17: 軽工業品 | C17: 0 | D17: 122 | E17: 21800 | F17: =SUM(C17:E18) -> 21922 | G17: 0 | H17: 1752 | I17: 519 | J17: =SUM(G17:I18) -> 2271 | K17: 0 | L17: 1296 | M17: 674 | N17: =SUM(K17:M18) -> 1970
A19: 雑工業品 | C19: 0 | D19: 48 | E19: 10193 | F19: =SUM(C19:E20) -> 10241 | G19: 0 | H19: 162 | I19: 57 | J19: =SUM(G19:I20) -> 219 | K19: 0 | L19: 1138 | M19: 292 | N19: =SUM(K19:M20) -> 1430
A21: 特種品 | C21: 0 | D21: 828 | E21: 95930 | F21: =SUM(C21:E22) -> 96758 | G21: 0 | H21: 950 | I21: 202 | J21: =SUM(G21:I22) -> 1152 | K21: 0 | L21: 3520 | M21: 182 | N21: =SUM(K21:M22) -> 3702
A23: その他 | C23: 248 | D23: 0 | E23: 0 | F23: =SUM(C23:E24) -> 248 | G23: 1873 | H23: 1 | I23: 0 | J23: =SUM(G23:I24) -> 1874 | K23: 1915 | L23: 0 | M23: 0 | N23: =SUM(K23:M24) -> 1915
A25: 計 | C25: =SUM(C7:C24) -> 248 | D25: 7591 | E25: 278425 | F25: 286264 | G25: 1873 | H25: 17761 | I25: 1196 | J25: 20830 | K25: 1915 | L25: 23845 | M25: 1471 | N25: 27231
A28: （注） | B28: １． 「貨物・旅客地域流動調査」による
B29: 2． 端数は四捨五入で処理しているので計の数字と内訳の数字が一致しない場合がある

Sheet 貨物３．
A1: ３．機関別地域間貨物流動表（令和５年度）
D5: 北海道 | E5: 北東北 | F5: 東東北 | G5: 西東北 | H5: 東関東 | I5: 北関東 | J5: 京浜葉 | K5: 新 潟 | L5: 北 陸 | M5: 甲 信 | N5: 静 岡 | O5: 中 京 | P5: 近 畿 | Q5: 阪 神 | R5: 山 陰 | S5: 山 陽 | T5: 山 口 | U5: 北四国 | V5: 南四国 | W5: 北九州 | X5: 中九州 | Y5: 南九州 | Z5: 沖 縄 | AA5: 全国計
A6: 北 海 道 | B6: 発 | C6: 鉄 道 | D6: 283.047 | E6: 58.48 | F6: 91.54 | G6: 40.772 | H6: 111.254 | I6: 250.177 | J6: 319.925 | K6: 50.602 | L6: 39.68 | M6: 50.486 | N6: 55.324 | O6: 176.689 | P6: 56.416 | Q6: 239.782 | R6: 10.08 | S6: 80.699 | T6: 9.7 | U6: 35.55 | V6: 15.825 | W6: 123.628 | X6: 29.22 | Y6: 26.779 | Z6: 0 | AA6: =SUM(D6:Z6) -> 2155.655
C7: 海 運 | D7: 8758.08 | E7: 1202.397 | F7: 1127.348 | G7: 547.833 | H7: 4098.1 | I7: 0 | J7: 4835.179 | K7: 309.741 | L7: 1557.336 | M7: 0 | N7: 113.472 | O7: 1838.866 | P7: 133.517 | Q7: 751.481 | R7: 63.518 | S7: 117.085 | T7: 250.473 | U7: 71.944 | V7: 32.717 | W7: 328.845 | X7: 239.358 | Y7: 25.396 | Z7: 9.948 | AA7: 26412.634
C8: 自動車 | D8: 278536.423 | E8: 132.798 | F8: 114.237 | G8: 0 | H8: 49.332 | I8: 134.632 | J8: 455.332 | K8: 30.174 | L8: 0 | M8: 19.382 | N8: 105.809 | O8: 65.446 | P8: 9.199 | Q8: 51.058 | R8: 0 | S8: 0 | T8: 0 | U8: 0 | V8: 0 | W8: 17.16 | X8: 0 | Y8: 11.499 | Z8: 0 | AA8: 279732.481
C9: 計 | D9: =SUM(D6:D8) -> 287577.55 | E9: 1393.675 | F9: 1333.125 | G9: 588.605 | H9: 4258.686 | I9: 384.809 | J9: 5610.436 | K9: 390.517 | L9: 1597.016 | M9: 69.868 | N9: 274.605 | O9: 2081.001 | P9: 199.132 | Q9: 1042.321 | R9: 73.598 | S9: 197.784 | T9: 260.173 | U9: 107.494 | V9: 48.542 | W9: 469.633 | X9: 268.578 | Y9: 63.674 | Z9: 9.948 | AA9: 308300.77
B10: 着 | C10: 鉄 道 | D10: 248.495 | E10: 48.106 | F10: 122.881 | G10: 38.309 | H10: 139.464 | I10: 202.355 | J10: 512.131 | K10: 90.134 | L10: 58.746 | M10: 45.231 | N10: 109.673 | O10: 154.227 | P10: 46.655 | Q10: 161.165 | R10: 7.076 | S10: 47.181 | T10: 11.555 | U10: 37.784 | V10: 16.894 | W10: 43.911 | X10: 14.565 | Y10: 7.075 | Z10: 0 | AA10: 2163.613
C11: 海 運 | D11: 7590.824 | E11: 3437.481 | F11: 4179.522 | G11: 451.97 | H11: 4899.631 | I11: 0 | J11: 5796.7 | K11: 307.411 | L11: 1212.428 | M11: 0 | N11: 156.225 | O11: 1633.047 | P11: 115.084 | Q11: 171.234 | R11: 0.457 | S11: 255.717 | T11: 267.396 | U11: 107.637 | V11: 40.974 | W11: 131.859 | X11: 104.156 | Y11: 6.067 | Z11: 1.126 | AA11: 30866.946
C12: 自動車 | D12: 278452.106 | E12: 161.033 | F12: 35.693 | G12: 41.356 | H12: 97.708 | I12: 212.903 | J12: 643.751 | K12: 11.411 | L12: 0 | M12: 0 | N12: 135.931 | O12: 71.235 | P12: 0 | Q12: 19.755 | R12: 32.311 | S12: 0 | T12: 0 | U12: 0 | V12: 0 | W12: 0 | X12: 0 | Y12: 0 | Z12: 0 | AA12: 279915.193
C13: 計 | D13: =SUM(D10:D12) -> 286291.425 | E13: 3646.62 | F13: 4338.096 | G13: 531.635 | H13: 5136.803 | I13: 415.258 | J13: 6952.582 | K13: 408.956 | L13: 1271.174 | M13: 45.231 | N13: 401.829 | O13: 1858.509 | P13: 161.739 | Q13: 352.154 | R13: 39.844 | S13: 302.898 | T13: 278.951 | U13: 145.421 | V13: 57.868 | W13: 175.77 | X13: 118.721 | Y13: 13.142 | Z13: 1.126 | AA13: 312945.752
A15: （注） | C15: １． 「貨物・旅客地域流動調査」による
C16: ２． 端数は四捨五入して処理しているので計の数字と内訳の数字が一致しない場合がある
O19: 地 域 の 範 囲
O20: 地域の名称 | Q20: 地域の範囲（都道府県名） | U20: 地域の名称 | W20: 地域の範囲（都道府県名）
O21: 北 海 道 | Q21: 北海道 | U21: 近 畿 | W21: 滋賀、京都、奈良、和歌山
O22: 北 東 北 | Q22: 青森、岩手 | U22: 阪 神 | W22: 大阪、兵庫
O23: 東 東 北 | Q23: 宮城、福島 | U23: 山 陰 | W23: 鳥取、島根
O24: 西 東 北 | Q24: 秋田、山形 | U24: 山 陽 | W24: 岡山、広島
O25: 東 関 東 | Q25: 茨城、栃木 | U25: 山 口 | W25: 山口
O26: 北 関 東 | Q26: 群馬、埼玉 | U26: 北 四 国 | W26: 香川、愛媛
O27: 京 浜 葉 | Q27: 千葉、東京、神奈川 | U27: 南 四 国 | W27: 徳島、高知
O28: 新 潟 | Q28: 新潟 | U28: 北 九 州 | W28: 福岡、佐賀、長崎
O29: 北 陸 | Q29: 富山、石川、福井 | U29: 中 九 州 | W29: 熊本、大分
O30: 甲 信 | Q30: 山梨、長野 | U30: 南 九 州 | W30: 宮崎、鹿児島
O31: 静 岡 | Q31: 静岡 | U31: 沖 縄 | W31: 沖縄
O32: 中 京 | Q32: 岐阜、愛知、三重

Sheet 貨物４．５．
A1: ４．支局別貨物自動車運送事業者数及び車両数
I2: （令和7年3月31日現在）
B3: 事業種別 | D3: 一般トラック | F3: 特積トラック | H3: 特 定 | J3: 霊 柩
D4: 事 業 | E4: 届 出 | F4: 事 業 | G4: 届 出 | H4: 事 業 | I4: 届 出 | J4: 事 業 | K4: 届 出
A5: 支局別 | D5: 者 数 | E5: 車両数 | F5: 者 数 | G5: 車両数 | H5: 者 数 | I5: 車両数 | J5: 者 数 | K5: 車両数
B6: 札幌 | D6: 1552 | E6: 36340 | F6: 19 | G6: 233 | H6: 13 | I6: 63 | J6: 103 | K6: 587
B7: 函館 | D7: 248 | E7: 4855 | F7: 2 | G7: 24 | H7: 2 | I7: 2 | J7: 48 | K7: 122
B8: 旭川 | D8: 391 | E8: 8641 | F8: 1 | G8: 22 | H8: 4 | I8: 7 | J8: 54 | K8: 179
B9: 室蘭 | D9: 297 | E9: 19385 | F9: 0 | G9: 0 | H9: 1 | I9: 5 | J9: 35 | K9: 83
B10: 釧路 | D10: 243 | E10: 8434 | F10: 0 | G10: 4 | H10: 3 | I10: 4 | J10: 20 | K10: 77
B11: 帯広 | D11: 335 | E11: 7737 | F11: 0 | G11: 6 | H11: 4 | I11: 20 | J11: 20 | K11: 86
B12: 北見 | D12: 192 | E12: 4420 | F12: 0 | G12: 0 | H12: 4 | I12: 10 | J12: 19 | K12: 75
B13: 合計 | D13: =SUM(D6:D12) -> 3258 | E13: =SUM(E6:E12) -> 89812 | F13: =SUM(F6:F12) -> 22 | G13: 289 | H13: =SUM(H6:H12) -> 31 | I13: =SUM(I6:I12) -> 111 | J13: =SUM(J6:J12) -> 299 | K13: =SUM(K6:K12) -> 1209
A15: （注） | C15: １． 北海道運輸局資料による。
C16: ２． 特積トラック欄の事業者数は、一般トラックの内数である。
C17: ３． 特積トラック欄の車両数は、運行車で一般トラックの内数である。
C18: ４． 霊柩自動車と普通自動車の両種別の事業用自動車を保有している事業者に
C19: あっては、一般の方に事業数を計上し、霊柩には車両数のみを計上し、事業者
C20: 数には計上しない。
A22: ５．貨物自動車運送事業の推移
B24: 区分 | D24: 一般トラック | G24: 特積トラック
A25: 年度 | D25: 事業者数 | E25: 車両数 | F25: 前年対比 | G25: 事業者数 | H25: 車両数 | I25: 前年対比
B26: 元 | D26: 3470 | E26: 93728 | F26: 101.584549 | G26: 22 | H26: 316 | I26: 104.6357616
B27: 2 | D27: 3491 | E27: 96541 | F27: 103.0012376 | G27: 22 | H27: 298 | I27: 94.30379747
B28: 3 | D28: 3526 | E28: 97476 | F28: 100.9685004 | G28: 22 | H28: 297 | I28: 99.66442953
B29: 4 | D29: 3490 | E29: 92432 | F29: 94.82539292 | G29: 22 | H29: 292 | I29: 98.31649832
B30: 5 | D30: 3485 | E30: 91612 | F30: 99.11286135 | G30: 22 | H30: 291 | I30: 99.65753425
B31: 6 | D31: 3258 | E31: 89812 | F31: =E31/E30*100 -> 98.0351919 | G31: 22 | H31: 289 | I31: =H31/H30*100 -> 99.31271478
B32: =B31&"/"&B26 -> 6/元 | D32: =D31/D26*100 -> 93.89048991 | E32: =E31/E26*100 -> 95.82195288 | G32: =G31/G26*100 -> 100 | H32: =H31/H26*100 -> 91.4556962
A34: （注） | C34: １． 霊柩を含まない。
C35: ="２． "&B32&"は令和"&B26&"年度を１００と表している。" -> ２． 6/元は令和元年度を１００と表している。

Sheet 貨物６．（１）（２）
A1: ６．規模別貨物自動車運送事業者数
A3: （１） 一般トラック（特積を除く）
G4: （令和7年3月31日現在）
A5: 資 本 金 | D5: 従 業 員 | F5: 車 両 数
A6: ５０万円まで | C6: 68 | D6: １０人まで | E6: 1655 | F6: ５両まで | G6: 867
A7: ５１～１００万円まで | C7: 99 | D7: １１～２０人まで | E7: 726 | F7: ６～１０両まで | G7: 854
A8: １０１～２００万円まで | C8: 53 | D8: ２１～３０人まで | E8: 313 | F8: １１～１５両まで | G8: 412
A9: ２０１～３００万円まで | C9: 463 | D9: ３１～５０人まで | E9: 287 | F9: １６～２０両まで | G9: 268
A10: ３０１～５００万円まで | C10: 347 | D10: ５１～７０人まで | E10: 97 | F10: ２１～３０両まで | G10: 299
A11: ５０１～１，０００万円まで | C11: 896 | D11: ７１～１００人まで | E11: 72 | F11: ３１～５０両まで | G11: 258
A12: １，００１～３，０００万円まで | C12: 706 | D12: １０１～２００人まで | E12: 66 | F12: ５１～１００両まで | G12: 184
A13: ３，００１～５，０００万円まで | C13: 213 | D13: ２０１～３００人まで | E13: 17 | F13: １０１～２００両まで | G13: 65
A14: ５，００１～１０，０００万円まで | C14: 160 | D14: ３０１～１，０００人まで | E14: 10 | F14: ２０１～５００両まで | G14: 29
A15: １０，００１万円以上 | C15: 129 | D15: １，００１人以上 | E15: 1 | F15: ５０１両以上 | G15: 8
A16: その他 | C16: 110
A17: 計 | C17: =SUM(C6:C16) -> 3244 | D17: 計 | E17: =SUM(E6:E16) -> 3244 | F17: 計 | G17: =SUM(G6:G16) -> 3244
B19: （注） １． 北海道運輸局資料による
B20: ２． 資本金の欄中その他は、公営及び個人である
B21: ３． 霊柩は含まない
B22: ４． 本社所在地が道外にある事業者は事業者数から除く
A25: （２） 特積トラック
G26: =G4 -> （令和7年3月31日現在）
A27: 資 本 金 | D27: 従 業 員 | F27: 車 両 数
A28: ５０万円まで | C28: 0 | D28: １０人まで | E28: 1 | F28: ５両まで | G28: 0
A29: ５１～１００万円まで | C29: 0 | D29: １１～２０人まで | E29: 0 | F29: ６～１０両まで | G29: 0
A30: １０１～２００万円まで | C30: 0 | D30: ２１～３０人まで | E30: 0 | F30: １１～１５両まで | G30: 7
A31: ２０１～３００万円まで | C31: 0 | D31: ３１～５０人まで | E31: 1 | F31: １６～２０両まで | G31: 1
A32: ３０１～５００万円まで | C32: 0 | D32: ５１～７０人まで | E32: 1 | F32: ２１～３０両まで | G32: 1
A33: ５０１～１，０００万円まで | C33: 0 | D33: ７１～１００人まで | E33: 0 | F33: ３１～５０両まで | G33: 3
A34: １，００１～３，０００万円まで | C34: 4 | D34: １０１～２００人まで | E34: 4 | F34: ５１～１００両まで | G34: 1
A35: ３，００１～５，０００万円まで | C35: 1 | D35: ２０１～３００人まで | E35: 1 | F35: １０１～２００両まで | G35: 1
A36: ５，００１～１０，０００万円まで | C36: 8 | D36: ３０１～１，０００人まで | E36: 5 | F36: ２０１～５００両まで | G36: 0
A37: １０，００１万円以上 | C37: 1 | D37: １，００１人以上 | E37: 1 | F37: ５０１両以上 | G37: 0
A38: 計 | C38: =SUM(C28:C37) -> 14 | D38: 計 | E38: =SUM(E28:E37) -> 14 | F38: 計 | G38: =SUM(G28:G37) -> 14
B40: （注） １． 北海道運輸局資料による
B41: ２． 本社所在地が道外にある事業者は事業者数から除く

Sheet 貨物７．
A1: ７．支局別土砂等を運搬する大型自動車数
J4: （令和6年12月31日現在）
B5: 種 別 | C5: 営業用 | D5: 自 家 用 | J5: 計
A6: 支局別
A7: 札 幌 | C7: 5116 | D7: 733 | E7: 23 | F7: 2 | G7: 20 | H7: 875 | I7: 233 | J7: =SUM(C7:I7) -> 7002
A8: 函 館 | C8: 732 | D8: 62 | E8: 7 | F8: 3 | G8: 20 | H8: 134 | I8: 37 | J8: 995
A9: 旭 川 | C9: 1692 | D9: 35 | E9: 16 | F9: 6 | G9: 54 | H9: 289 | I9: 147 | J9: 2239
A10: 室 蘭 | C10: 1105 | D10: 72 | E10: 19 | F10: 12 | G10: 27 | H10: 179 | I10: 99 | J10: 1513
A11: 釧 路 | C11: 730 | D11: 71 | E11: 5 | F11: 0 | G11: 34 | H11: 152 | I11: 66 | J11: 1058
A12: 帯 広 | C12: 1174 | D12: 31 | E12: 0 | F12: 0 | G12: 20 | H12: 122 | I12: 84 | J12: 1431
A13: 北 見 | C13: 977 | D13: 11 | E13: 5 | F13: 2 | G13: 11 | H13: 108 | I13: 81 | J13: 1195
A14: 計 | C14: =SUM(C7:C13) -> 11526 | D14: 1015 | E14: 75 | F14: 25 | G14: 186 | H14: 1859 | I14: 747 | J14: 15433
A16: （注） | B16: １． 北海道運輸局資料による。
B17: ２． 業態別内訳
C19: 自動車運送事業 | F19: 砂 利 採 取 業
C20: 砂 利 販 売 業 | F20: 建 設 業
C21: 採 石 業 | F21: そ の 他
C22: 砕 石 業

Sheet 貨物８．
A1: ８．貨物自動車品 | K1: 目別輸送量の推移
R4: （単位：千トン、％）
B5: 品目
D6: 野 菜 | E6: その他 | L6: 砂 利 | M6: 工業用 | O6: 金 属 | R6: 石 油 | S6: コークス・
C7: 穀 物 | D7: ・ | E7: の農産 | F7: 畜産品 | G7: 水産品 | H7: 木 材 | I7: 薪 炭 | J7: 石 炭 | K7: 金属鉱 | L7: ・ 砂 ・ | M7: 非金属 | N7: 金 属 | P7: 機 械 | Q7: 窯業品 | S7: その他の
A8: 年度 | D8: 果 物 | E8: 品 | L8: 石 材 | M8: 鉱 物 | O8: 製 品 | R8: 製 品 | S8: 石炭製品
A10: 30 | C10: 2903 | D10: 10750 | E10: 1767 | F10: 5658 | G10: 11531 | H10: 12178 | I10: 588 | J10: 5345 | K10: 108 | L10: 32737 | M10: 1988 | N10: 6332 | O10: 4713 | P10: 12887 | Q10: 11494 | R10: 8483 | S10: 106
A11: 元 | C11: 5386 | D11: 11678 | E11: 4243 | F11: 11070 | G11: 9431 | H11: 14132 | I11: 91 | J11: 2093 | K11: 1109 | L11: 31949 | M11: 1005 | N11: 6931 | O11: 4432 | P11: 11675 | Q11: 10976 | R11: 8219 | S11: 95
A12: 2 | C12: 3377 | D12: 6959 | E12: 7544 | F12: 8980 | G12: 2548 | H12: 8817 | I12: 61 | J12: 3081 | K12: 756 | L12: 50651 | M12: 2865 | N12: 3785 | O12: 3151 | P12: 11398 | Q12: 18435 | R12: 10910 | S12: 68
A13: 3 | C13: 4474 | D13: 6593 | E13: 10229 | F13: 12341 | G13: 3363 | H13: 7619 | I13: 30 | J13: 2457 | K13: 223 | L13: 43432 | M13: 1642 | N13: 4177 | O13: 3287 | P13: 10346 | Q13: 19139 | R13: 10894 | S13: 734
A14: 4 | C14: 4523 | D14: 6987 | E14: 5383 | F14: 7573 | G14: 2851 | H14: 9868 | I14: 38 | J14: 739 | K14: 726 | L14: 49299 | M14: 4290 | N14: 3692 | O14: 3425 | P14: 11317 | Q14: 19068 | R14: 9820 | S14: 52
A15: 5 | C15: 6341 | D15: 3912 | E15: 4115 | F15: 9709 | G15: 2279 | H15: 8109 | I15: 11 | J15: 2730 | K15: 135 | L15: 47999 | M15: 2014 | N15: 3341 | O15: 2240 | P15: 13054 | Q15: 13374 | R15: 10472 | S15: 0
A16: =A15&"/"&A10 -> 5/30 | C16: =C15/C10*100 -> 218.4292112 | D16: 36.39069767 | E16: 232.8805886 | F16: 171.5977377 | G16: 19.76411413 | H16: 66.58728855 | I16: 1.870748299 | J16: 51.07577175 | K16: 125 | L16: 146.6200324 | M16: 101.3078471 | N16: 52.76373973 | O16: 47.52811373 | P16: 101.2958796 | Q16: 116.3563598 | R16: 123.4468938 | S16: =S14/S10*100 -> 49.05660377
B20: 品目 | E20: 染料 ・ | J20: ｺﾞﾑ製品
C21: 化 学 | D21: 化 学 | E21: 塗料 ・ | F21: 紙 ・ | G21: 繊 維 | H21: 食 料 | J21: ・木製品 | L21: 動・植物性 | N21: 輸送用 | O21: 取り合 | P21: 分 類 | R21: 前年度
E22: その他 | I22: 日用品 | J22: その他 | K22: くずもの | M22: 廃棄物 | P22: 不能の | Q22: 合 計
A23: 年度 | C23: 薬 品 | D23: 肥 料 | E23: の化学 | F23: パルプ | G23: 工業品 | H23: 工業品 | J23: の製造 | L23: 飼・肥料 | N23: 容 器 | O23: わせ品 | P23: も の | R23: 対 比
E24: 工業品 | J24: 工業品
A25: =$A$10 -> 30 | C25: 1361 | D25: 5053 | E25: 5269 | F25: 21346 | G25: 286 | H25: 43263 | I25: 14212 | J25: 463 | K25: 13905 | L25: 9339 | M25: 28735 | N25: 1349 | O25: 11758 | P25: 0 | Q25: 290854 | R25: 98.29880868
A26: =$A$11 -> 元 | C26: 722 | D26: 3240 | E26: 4756 | F26: 8286 | G26: 364 | H26: 42492 | I26: 16748 | J26: 980 | K26: 8700 | L26: 14963 | M26: 26427 | N26: 2484 | O26: 14375 | P26: 0 | Q26: 287923 | R26: 97.6023672
A27: =$A$12 -> 2 | C27: 568 | D27: 2602 | E27: 1275 | F27: 3431 | G27: 340 | H27: 13261 | I27: 6076 | J27: 377 | K27: 4854 | L27: 17299 | M27: 46418 | N27: 2323 | O27: 6282 | P27: 0 | Q27: 246086 | R27: 89.0486361
A28: =$A$13 -> 3 | C28: 260 | D28: 2462 | E28: 1251 | F28: 4564 | G28: 137 | H28: 12756 | I28: 6384 | J28: 516 | K28: 3989 | L28: 13743 | M28: 49318 | N28: 1701 | O28: 7752 | P28: 0 | Q28: 244484 | R28: 98.92189688
A29: =$A$14 -> 4 | C29: 842 | D29: 2005 | E29: 1099 | F29: 3893 | G29: 1085 | H29: 6731 | I29: 8455 | J29: 454 | K29: 4556 | L29: 18287 | M29: 25378 | N29: 1996 | O29: 6752 | P29: 0 | Q29: 221184 | R29: 90.46972399
A30: =$A$15 -> 5 | C30: 342 | D30: 1606 | E30: 936 | F30: 3066 | G30: 364 | H30: 12695 | I30: 6955 | J30: 626 | K30: 4535 | L30: 18123 | M30: 49172 | N30: 2377 | O30: 7101 | P30: 0 | Q30: =SUM(C30:P30,C15:S15) -> 237733 | R30: =Q30/Q29*100 -> 107.4820059
A31: =$A$16 -> 5/30 | C31: =C30/C25*100 -> 25.12858193 | D31: 31.78309915 | E31: 17.76428165 | F31: 14.36334676 | G31: 127.2727273 | H31: 29.34378106 | I31: 48.93751759 | J31: 135.2051836 | K31: 32.61416757 | L31: 194.0571796 | M31: 171.1223247 | N31: 176.204596 | O31: 60.39292397 | P31: - | Q31: =SUM(C31:P31,C16:S16) -> 2726.161339 | R31: =Q31/Q30*100 -> 1.146732401
A33: （注） | C33: １． 「自動車輸送統計年報」による
C34: ２． 端数は四捨五入で処理しているので計の数字と内訳の数字が一致しない場合がある
C35: ="３． "&A31&"は平成"&A25&"年度を１００と表している" -> ３． 5/30は平成30年度を１００と表している

Sheet 貨物９．
A1: ９．ＪＲ貨物鉄道品目別輸送量の推移
BC4: （単位 ： 千トン、％）
B5: 品 目 | C5: 石 炭 | F5: コークス | I5: 砂 利 | L5: 鉱 石 | O5: 石灰石 | R5: その他 の 鉱産品 | U5: パルプ 用 材 | X5: 原木 ・ 製材そ の他の 木 材 | AA5: その他 の 林産品 | AD5: 米 | AG5: 麦 | AJ5: 生野菜 | AM5: 飼 料 | AP5: その他 の 農産品 | AS5: 畜産品 | AV5: 鮮 魚 冷凍魚 | AY5: その他 の 水産品 | BB5: 鉄 鋼 鉄 材 | BE5: 産業用 その他 の機器 | BH5: 自動車
A6: 年 度
A7: 元 | C7: － | F7: － | I7: － | L7: － | O7: － | R7: － | U7: － | X7: － | AA7: － | AD7: － | AG7: － | AJ7: － | AM7: － | AP7: － | AS7: － | AV7: － | AY7: － | BB7: － | BE7: － | BH7: －
C8: （ | D8: － | E8: ） | F8: （ | G8: － | H8: ） | I8: （ | J8: － | K8: ） | L8: （ | M8: 3 | N8: ） | O8: （ | P8: － | Q8: ） | R8: （ | S8: 2 | T8: ） | U8: （ | V8: － | W8: ） | X8: （ | Y8: 3 | Z8: ） | AA8: （ | AB8: 1 | AC8: ） | AD8: （ | AE8: 120 | AF8: ） | AG8: （ | AH8: 1 | AI8: ） | AJ8: （ | AK8: 781 | AL8: ） | AM8: （ | AN8: 16 | AO8: ） | AP8: （ | AQ8: 66 | AR8: ） | AS8: （ | AT8: 4 | AU8: ） | AV8: （ | AW8: － | AX8: ） | AY8: （ | AZ8: 16 | BA8: ） | BB8: （ | BC8: 2 | BD8: ） | BE8: （ | BF8: 43 | BG8: ） | BH8: （ | BI8: － | BJ8: ）
A9: 2 | C9: － | F9: － | I9: － | L9: － | O9: － | R9: － | U9: － | X9: － | AA9: － | AD9: － | AG9: － | AJ9: － | AM9: － | AP9: － | AS9: － | AV9: － | AY9: － | BB9: － | BE9: － | BH9: －
C10: （ | D10: － | E10: ） | F10: （ | G10: － | H10: ） | I10: （ | J10: － | K10: ） | L10: （ | M10: 7 | N10: ） | O10: （ | P10: － | Q10: ） | R10: （ | S10: 2 | T10: ） | U10: （ | V10: － | W10: ） | X10: （ | Y10: 2 | Z10: ） | AA10: （ | AB10: 1 | AC10: ） | AD10: （ | AE10: 107 | AF10: ） | AG10: （ | AH10: 1 | AI10: ） | AJ10: （ | AK10: 793 | AL10: ） | AM10: （ | AN10: 16 | AO10: ） | AP10: （ | AQ10: 66 | AR10: ） | AS10: （ | AT10: 4 | AU10: ） | AV10: （ | AW10: － | AX10: ） | AY10: （ | AZ10: 16 | BA10: ） | BB10: （ | BC10: 2 | BD10: ） | BE10: （ | BF10: 36 | BG10: ） | BH10: （ | BI10: － | BJ10: ）
A11: 3 | C11: － | F11: － | I11: － | L11: － | O11: － | R11: － | U11: － | X11: － | AA11: － | AD11: － | AG11: － | AJ11: － | AM11: － | AP11: － | AS11: － | AV11: － | AY11: － | BB11: － | BE11: － | BH11: －
C12: （ | D12: － | E12: ） | F12: （ | G12: － | H12: ） | I12: （ | J12: － | K12: ） | L12: （ | M12: 7 | N12: ） | O12: （ | P12: - | Q12: ） | R12: （ | S12: 2 | T12: ） | U12: （ | V12: － | W12: ） | X12: （ | Y12: 2 | Z12: ） | AA12: （ | AB12: － | AC12: ） | AD12: （ | AE12: 107 | AF12: ） | AG12: （ | AH12: 1 | AI12: ） | AJ12: （ | AK12: 675 | AL12: ） | AM12: （ | AN12: 17 | AO12: ） | AP12: （ | AQ12: 73 | AR12: ） | AS12: （ | AT12: 5 | AU12: ） | AV12: （ | AW12: － | AX12: ） | AY12: （ | AZ12: 16 | BA12: ） | BB12: （ | BC12: 2 | BD12: ） | BE12: （ | BF12: 36 | BG12: ） | BH12: （ | BI12: － | BJ12: ）
A13: 4 | C13: － | F13: － | I13: － | L13: － | O13: － | R13: － | U13: － | X13: － | AA13: － | AD13: － | AG13: － | AJ13: － | AM13: － | AP13: － | AS13: － | AV13: － | AY13: － | BB13: － | BE13: － | BH13: －
C14: （ | D14: － | E14: ） | F14: （ | G14: － | H14: ） | I14: （ | J14: － | K14: ） | L14: （ | M14: 3 | N14: ） | O14: （ | P14: － | Q14: ） | R14: （ | S14: 3 | T14: ） | U14: （ | V14: － | W14: ） | X14: （ | Y14: 2 | Z14: ） | AA14: （ | AB14: － | AC14: ） | AD14: （ | AE14: 119 | AF14: ） | AG14: （ | AH14: 0 | AI14: ） | AJ14: （ | AK14: 679 | AL14: ） | AM14: （ | AN14: 15 | AO14: ） | AP14: （ | AQ14: 75 | AR14: ） | AS14: （ | AT14: 7 | AU14: ） | AV14: （ | AW14: － | AX14: ） | AY14: （ | AZ14: 16 | BA14: ） | BB14: （ | BC14: 2 | BD14: ） | BE14: （ | BF14: 37 | BG14: ） | BH14: （ | BI14: － | BJ14: ）
A15: 5 | C15: － | F15: － | I15: － | L15: － | O15: － | R15: － | U15: － | X15: － | AA15: － | AD15: － | AG15: － | AJ15: － | AM15: － | AP15: － | AS15: － | AV15: － | AY15: － | BB15: － | BE15: － | BH15: －
C16: （ | D16: － | E16: ） | F16: （ | G16: － | H16: ） | I16: （ | J16: － | K16: ） | L16: （ | M16: 1 | N16: ） | O16: （ | P16: － | Q16: ） | R16: （ | S16: 3 | T16: ） | U16: （ | V16: － | W16: ） | X16: （ | Y16: 2 | Z16: ） | AA16: （ | AB16: － | AC16: ） | AD16: （ | AE16: 116 | AF16: ） | AG16: （ | AH16: 1 | AI16: ） | AJ16: （ | AK16: 689 | AL16: ） | AM16: （ | AN16: 21 | AO16: ） | AP16: （ | AQ16: 72 | AR16: ） | AS16: （ | AT16: 5 | AU16: ） | AV16: （ | AW16: － | AX16: ） | AY16: （ | AZ16: 17 | BA16: ） | BB16: （ | BC16: 2 | BD16: ） | BE16: （ | BF16: 37 | BG16: ） | BH16: （ | BI16: － | BJ16: ）
A17: 6 | C17: － | F17: － | I17: － | L17: － | O17: － | R17: － | U17: － | X17: － | AA17: － | AD17: － | AG17: － | AJ17: － | AM17: － | AP17: － | AS17: － | AV17: － | AY17: － | BB17: － | BE17: － | BH17: －
C18: （ | D18: － | E18: ） | F18: （ | G18: － | H18: ） | I18: （ | J18: － | K18: ） | L18: （ | M18: 1 | N18: ） | O18: （ | P18: － | Q18: ） | R18: （ | S18: 3 | T18: ） | U18: （ | V18: － | W18: ） | X18: （ | Y18: 3 | Z18: ） | AA18: （ | AB18: － | AC18: ） | AD18: （ | AE18: 100 | AF18: ） | AG18: （ | AH18: 1 | AI18: ） | AJ18: （ | AK18: 694 | AL18: ） | AM18: （ | AN18: 17 | AO18: ） | AP18: （ | AQ18: 73 | AR18: ） | AS18: （ | AT18: 4 | AU18: ） | AV18: （ | AW18: － | AX18: ） | AY18: （ | AZ18: 14 | BA18: ） | BB18: （ | BC18: 2 | BD18: ） | BE18: （ | BF18: 35 | BG18: ） | BH18: （ | BI18: － | BJ18: ）
A19: =A17&"/"&A7 -> 6/元
B22: 品 目 | C22: 甲 種 鉄 道 車 両 | F22: その他 の金属 機 械 工業品 | I22: 肥 料 | L22: 石 油 | O22: セメント | R22: ガラスと その製品 | U22: 窯業製品 | X22: 化学製品 | AA22: その他 の化学 工業品 | AD22: 酒 ・ ビール | AG22: その他 の食料 工業品 | AJ22: パルプ 紙とそ の製品 | AM22: 繊 維 原 料 その他 | AP22: その他の工業部品 | AS22: 小 口 混 載 | AV22: その他 | AY22: コンテ ナ 扱 | BB22: 合 計 | BF22: 前年度 対 比
A23: 年 度
A24: =$A$7 -> 元 | C24: 1 | F24: － | I24: － | L24: － | O24: － | R24: － | U24: － | X24: － | AA24: － | AD24: － | AG24: － | AJ24: － | AM24: － | AP24: － | AS24: － | AV24: － | AY24: 2310 | BB24: 2310 | BF24: 97.44699264
C25: （ | D25: 1 | E25: ） | F25: （ | G25: 32 | H25: ） | I25: （ | J25: 2 | K25: ） | L25: （ | M25: － | N25: ） | O25: （ | P25: 1 | Q25: ） | R25: （ | S25: 8 | T25: ） | U25: （ | V25: 1 | W25: ） | X25: （ | Y25: 43 | Z25: ） | AA25: （ | AB25: 31 | AC25: ） | AD25: （ | AE25: 15 | AF25: ） | AG25: （ | AH25: 553 | AI25: ） | AJ25: （ | AK25: 54 | AL25: ） | AM25: （ | AN25: 7 | AO25: ） | AP25: （ | AQ25: 130 | AR25: ） | AS25: （ | AT25: 10 | AU25: ） | AV25: （ | AW25: 274 | AX25: ） | AY25: （ | AZ25: － | BA25: ） | BB25: （ | BC25: 2310 | BE25: ）
A26: =$A$9 -> 2 | C26: 1 | F26: － | I26: － | L26: － | O26: － | R26: － | U26: － | X26: － | AA26: － | AD26: － | AG26: － | AJ26: － | AM26: － | AP26: － | AS26: － | AV26: － | AY26: 2251 | BB26: 2251 | BF26: 94.6714032
C27: （ | D27: 1 | E27: ） | F27: （ | G27: 30 | H27: ） | I27: （ | J27: 2 | K27: ） | L27: （ | M27: － | N27: ） | O27: （ | P27: 1 | Q27: ） | R27: （ | S27: 4 | T27: ） | U27: （ | V27: 1 | W27: ） | X27: （ | Y27: 32 | Z27: ） | AA27: （ | AB27: 29 | AC27: ） | AD27: （ | AE27: 12 | AF27: ） | AG27: （ | AH27: 541 | AI27: ） | AJ27: （ | AK27: 47 | AL27: ） | AM27: （ | AN27: 8 | AO27: ） | AP27: （ | AQ27: 128 | AR27: ） | AS27: （ | AT27: 9 | AU27: ） | AV27: （ | AW27: 267 | AX27: ） | AY27: （ | AZ27: － | BA27: ） | BB27: （ | BC27: 2251 | BE27: ）
A28: =$A$11 -> 3 | C28: 1 | F28: － | I28: － | L28: － | O28: － | R28: － | U28: － | X28: － | AA28: － | AD28: － | AG28: － | AJ28: － | AM28: － | AP28: － | AS28: － | AV28: － | AY28: 2132 | BB28: 2132 | BF28: 100.7973734
C29: （ | D29: 1 | E29: ） | F29: （ | G29: 33 | H29: ） | I29: （ | J29: 2 | K29: ） | L29: （ | M29: － | N29: ） | O29: （ | P29: 1 | Q29: ） | R29: （ | S29: 3 | T29: ） | U29: （ | V29: 1 | W29: ） | X29: （ | Y29: 32 | Z29: ） | AA29: （ | AB29: 31 | AC29: ） | AD29: （ | AE29: 12 | AF29: ） | AG29: （ | AH29: 546 | AI29: ） | AJ29: （ | AK29: 40 | AL29: ） | AM29: （ | AN29: 7 | AO29: ） | AP29: （ | AQ29: 124 | AR29: ） | AS29: （ | AT29: 11 | AU29: ） | AV29: （ | AW29: 267 | AX29: ） | AY29: （ | AZ29: － | BA29: ） | BB29: （ | BC29: 2132 | BE29: ）
A30: =$A$13 -> 4 | C30: 1 | F30: － | I30: － | L30: － | O30: － | R30: － | U30: － | X30: － | AA30: － | AD30: － | AG30: － | AJ30: － | AM30: － | AP30: － | AS30: － | AV30: － | AY30: 2149 | BB30: 2149 | BF30: 98.88320149
C31: （ | D31: 1 | E31: ） | F31: （ | G31: 29 | H31: ） | I31: （ | J31: 2 | K31: ） | L31: （ | M31: － | N31: ） | O31: （ | P31: 1 | Q31: ） | R31: （ | S31: 3 | T31: ） | U31: （ | V31: 1 | W31: ） | X31: （ | Y31: 31 | Z31: ） | AA31: （ | AB31: 29 | AC31: ） | AD31: （ | AE31: 12 | AF31: ） | AG31: （ | AH31: 563 | AI31: ） | AJ31: （ | AK31: 30 | AL31: ） | AM31: （ | AN31: 8 | AO31: ） | AP31: （ | AQ31: 122 | AR31: ） | AS31: （ | AT31: 11 | AU31: ） | AV31: （ | AW31: 262 | AX31: ） | AY31: （ | AZ31: － | BA31: ） | BB31: （ | BC31: 2149 | BE31: ）
A32: =$A$15 -> 5 | C32: 2 | F32: － | I32: － | L32: － | O32: － | R32: － | U32: － | X32: － | AA32: － | AD32: － | AG32: － | AJ32: － | AM32: － | AP32: － | AS32: － | AV32: － | AY32: 2124 | BB32: 2124 | BF32: 98.88320149
C33: （ | D33: 2 | E33: ） | F33: （ | G33: 30 | H33: ） | I33: （ | J33: 3 | K33: ） | L33: （ | M33: 1 | N33: ） | O33: （ | P33: 1 | Q33: ） | R33: （ | S33: 2 | T33: ） | U33: （ | V33: 1 | W33: ） | X33: （ | Y33: 15 | Z33: ） | AA33: （ | AB33: 26 | AC33: ） | AD33: （ | AE33: 12 | AF33: ） | AG33: （ | AH33: 557 | AI33: ） | AJ33: （ | AK33: 28 | AL33: ） | AM33: （ | AN33: 8 | AO33: ） | AP33: （ | AQ33: 117 | AR33: ） | AS33: （ | AT33: 10 | AU33: ） | AV33: （ | AW33: 265 | AX33: ） | AY33: （ | AZ33: － | BA33: ） | BB33: （ | BC33: 2124 | BE33: ）
A34: =$A$17 -> 6 | C34: 2 | F34: － | I34: － | L34: － | O34: － | R34: － | U34: － | X34: － | AA34: － | AD34: － | AG34: － | AJ34: － | AM34: － | AP34: － | AS34: － | AV34: － | AY34: 2058 | BB34: 2058 | BF34: =BB34/BB32*100 -> 96.89265537
C35: （ | D35: 2 | E35: ） | F35: （ | G35: 30 | H35: ） | I35: （ | J35: 2 | K35: ） | L35: （ | M35: － | N35: ） | O35: （ | P35: 1 | Q35: ） | R35: （ | S35: 2 | T35: ） | U35: （ | V35: 1 | W35: ） | X35: （ | Y35: 12 | Z35: ） | AA35: （ | AB35: 24 | AC35: ） | AD35: （ | AE35: 12 | AF35: ） | AG35: （ | AH35: 530 | AI35: ） | AJ35: （ | AK35: 27 | AL35: ） | AM35: （ | AN35: 7 | AO35: ） | AP35: （ | AQ35: 114 | AR35: ） | AS35: （ | AT35: 10 | AU35: ） | AV35: （ | AW35: 262 | AX35: ） | AY35: （ | AZ35: － | BA35: ） | BB35: （ | BC35: 2058 | BE35: ）
A36: =$A$19 -> 6/元 | AY36: =AY34/AY24*100 -> 89.09090909 | BB36: =BB34/BB24*100 -> 89.09090909
A39: （注） | C39: １． ＪＲ貨物資料による
C40: ２． 道内発送品目に限る（本州から移入分は除外）
C41: ３． 端数は四捨五入しているので計の数字と内訳の数字が一致しない場合がある
C42: ４． （ ）書きは、コンテナ貨物を品目別に分類し車扱貨物に加えた数値
C43: ="５． "&A36&"は令和"&A24&"年度を１００と表している" -> ５． 6/元は令和元年度を１００と表している

Sheet 貨物１０．
A1: １０．ＪＲ以外の鉄道品目別輸送量の推移
E4: （単位 ： 千トン、％）
B5: 品目 | C5: 石 炭 | D5: その他 | E5: 合 計 | F5: 前年度 対 比
A7: 年度
A8: 元 | C8: － | D8: － | E8: － | F8: －
A9: 2 | C9: － | D9: － | E9: － | F9: －
A10: 3 | C10: － | D10: － | E10: － | F10: －
A11: 4 | C11: － | D11: － | E11: － | F11: －
A12: 5 | C12: － | D12: － | E12: － | F12: －
A13: 6 | C13: － | D13: － | E13: － | F13: －
A14: =A13&"／"&A8 -> 6／元 | C14: － | D14: － | E14: － | F14: －
A16: （注） | B16: １．北海道運輸局資料による
B17: ２．端数が四捨五入で処理しているので計の数字と内訳の数字が一致しない場合がある
B18: ３．小口扱を除く
B19: ="４．"&A14&"は令和"&A8&"年度を１００と表している" -> ４．6／元は令和元年度を１００と表している

Sheet 貨物１１．（１）（２）（３）
A1: １１．貨物利用運送事業
A3: （１） 貨物利用運送事業者数の推移
I5: 年 度 | J5: 2 | P5: 3 | V5: 4 | AB5: 5 | AH5: 6
I6: モード | J6: 鉄 道 | L6: 自動車 | N6: 内 航 | P6: 鉄 道 | R6: 自動車 | T6: 内 航 | V6: 鉄 道 | X6: 自動車 | Z6: 内 航 | AB6: 鉄 道 | AD6: 自動車 | AF6: 内 航 | AH6: 鉄 道 | AJ6: 自動車 | AL6: 内 航
A7: 事業種別
A8: 第一種利用運送 | J8: 9 | L8: 1016 | N8: 65 | P8: 9 | R8: 1043 | T8: 64 | V8: 9 | X8: 1060 | Z8: 64 | AB8: 9 | AD8: 1074 | AF8: 65 | AH8: 9 | AJ8: 1100 | AL8: 65
A9: 第二種利用運送 | J9: 187 | L9: － | N9: 100 | P9: 188 | R9: － | T9: 108 | V9: 190 | X9: － | Z9: 111 | AB9: 190 | AD9: － | AF9: 114 | AH9: 192 | AJ9: - | AL9: 119
A11: （注） | C11: １． 北海道運輸局資料による
C12: ２． 自動車に係る事業者は、管内で許可又は登録（旧法の登録）を受けた者を計上
C13: ３． 内航に係る事業者は、管内で管理している事業者を計上
A16: （２） 鉄道に係る貨物利用運送事業者数等
AJ17: （令和7年3月31日現在）
H18: 項 目 | I18: 事 業 者 数 | P18: 拠点（取扱）駅数
A19: 事業種別 | P19: Ｊ Ｒ | W19: ＪＲ以外 | AD19: 合 計
A20: 第一種利用運送 | I20: 9 | P20: 27 | W20: 2 | AD20: =SUM(P20:Y20) -> 29
A21: 第二種利用運送 | I21: 191 | P21: 577 | W21: 2 | AD21: =SUM(P21:Y21) -> 579
A23: （注） | C23: １． 北海道運輸局資料による
C24: ２． 拠点（取扱）駅数は、事業者の事業計画上の拠点駅の延べ数
A26: （３） 鉄道に係る貨物利用運送事業の取扱数量の推移
AN27: （単位：千トン）
F28: 区 分 | G28: 第 一 種 利 用 運 送 事 業 | X28: 第 二 種 利 用 運 送 事 業
A29: 年 度 | G29: 車扱 | K29: コンテナ扱 | N29: 混載荷物扱 | Q29: 手小荷物扱 | T29: 計 | X29: 車扱 | AA29: コンテナ扱 | AE29: 混載荷物扱 | AH29: 手小荷物扱 | AK29: 計
A30: =$J$5 -> 2 | G30: 0 | K30: 607 | N30: － | Q30: － | T30: =SUM(G30:S30) -> 607 | X30: 0 | AA30: 5602 | AE30: 3 | AH30: － | AK30: =SUM(X30:AJ30) -> 5605
A31: =$P$5 -> 3 | G31: 0 | K31: 584 | N31: － | Q31: － | T31: =SUM(G31:S31) -> 584 | X31: 0 | AA31: 5265 | AE31: 6 | AH31: － | AK31: =SUM(X31:AJ31) -> 5271
A32: =$V$5 -> 4 | G32: 0 | K32: 568 | N32: － | Q32: － | T32: =SUM(G32:S32) -> 568 | X32: 2 | AA32: 5246 | AE32: 7 | AH32: － | AK32: =SUM(X32:AJ32) -> 5255
A33: =$AB$5 -> 5 | G33: 0 | K33: 544 | N33: － | Q33: － | T33: =SUM(G33:S33) -> 544 | X33: 2 | AA33: 5084 | AE33: 3 | AH33: － | AK33: =SUM(X33:AJ33) -> 5089
A34: =$AH$5 -> 6 | G34: 0 | K34: 555 | N34: - | Q34: - | T34: =SUM(G34:S34) -> 555 | X34: 0 | AA34: 4751 | AE34: 2 | AH34: - | AK34: =SUM(X34:AJ34) -> 4753
A36: （注） | C36: １． 北海道運輸局資料による
C37: ２． 千トン未満四捨五入

Sheet 貨物１２．（１）（２）
A1: １２．内 航 海 運 業
A3: （１） 支局別内航海運事業者数
AL4: （令和7年3月31日現在）
C5: 事業種別 | G5: 内 航 運 送 業 | O5: 内 航 船 舶 貸 渡 業 | W5: 内 航 船 舶 管 理 業 | AE5: 計
A6: 支局別 | G6: 登 録 業 者 | K6: 届 出 業 者 | O6: 登 録 業 者 | S6: 届 出 業 者 | W6: 登 録 業 者 | AA6: 届 出 業 者 | AE6: 登 録 業 者 | AI6: 届 出 業 者
B7: 本局(札幌） | G7: 0 | K7: 5 | O7: 2 | S7: 1 | W7: 0 | AA7: 0 | AE7: =SUM(G7+O7+W7) -> 2 | AI7: =SUM(K7+S7+AA7) -> 6
B8: 函館 | G8: 3 | K8: 9 | O8: 3 | S8: 0 | W8: 1 | AA8: 0 | AE8: 7 | AI8: 9
B9: 室蘭 | G9: 0 | K9: 7 | O9: 0 | S9: 0 | W9: 1 | AA9: 0 | AE9: 1 | AI9: 7
B10: 苫小牧 | G10: 2 | K10: 6 | O10: 0 | S10: 0 | W10: 0 | AA10: 0 | AE10: 2 | AI10: 6
B11: 釧路 | G11: 0 | K11: 10 | O11: 0 | S11: 0 | W11: 0 | AA11: 0 | AE11: 0 | AI11: 10
B12: 旭川 | G12: 1 | K12: 3 | O12: 0 | S12: 1 | W12: 0 | AA12: 0 | AE12: 1 | AI12: 4
B13: 帯広 | G13: 0 | K13: 3 | O13: 0 | S13: 0 | W13: 0 | AA13: 0 | AE13: 0 | AI13: 3
B14: 北見 | G14: 2 | K14: 1 | O14: 0 | S14: 0 | W14: 0 | AA14: 0 | AE14: 2 | AI14: 1
B15: 合計 | G15: =SUM(G7:I14) -> 8 | K15: =SUM(K7:M14) -> 44 | O15: =SUM(O7:Q14) -> 5 | S15: =SUM(S7:U14) -> 2 | W15: =SUM(W7:Y14) -> 2 | AA15: =SUM(AA7:AC14) -> 0 | AE15: =SUM(AE7:AG14) -> 15 | AI15: =SUM(AI7:AK14) -> 46
A17: （注） | C17: １． 北海道運輸局資料による
C18: ２． 上記の事業者数の内、登録業、届出業いずれも行っている者は登録業者に、届出運送業、届出
C19: 貸渡業、届出管理業いずれも行っている者は届出運送業者に計上
A21: （２） 内航海運業船腹量の推移
A23: 区 分 | E23: 木 船 | O23: 鋼 船 | AB23: 計
E24: 貨 物 船 | J24: そ の 他 | O24: 貨 物 船 | U24: そ の 他 | AB24: 貨 物 船 | AH24: そ の 他
A25: 年 度 | E25: 隻 数 | G25: 総トン数 | J25: 隻 数 | L25: 総トン数 | O25: 隻 数 | R25: 総トン数 | U25: 隻 数 | X25: 総トン数 | AB25: 隻 数 | AE25: 総トン数 | AH25: 隻 数 | AK25: 総トン数
A26: 元 | E26: 0 | G26: 0 | J26: 0 | L26: 0 | O26: 12 | R26: 6769.98 | U26: 128 | X26: 38131 | AB26: =E26+O26 -> 12 | AE26: =G26+R26 -> 6769.98 | AH26: =J26+U26 -> 128 | AK26: =L26+X26 -> 38131
A27: 2 | E27: 0 | G27: 0 | J27: 0 | L27: 0 | O27: 13 | R27: 7516 | U27: 135 | X27: 52987 | AB27: 13 | AE27: 7516 | AH27: 135 | AK27: 52987
A28: 3 | E28: 0 | G28: 0 | J28: 0 | L28: 0 | O28: 11 | R28: 7269 | U28: 137 | X28: 42493 | AB28: 11 | AE28: 7269 | AH28: 137 | AK28: 42493
A29: 4 | E29: 0 | G29: 0 | J29: 0 | L29: 0 | O29: 11 | R29: 7269 | U29: 141 | X29: 43521 | AB29: 11 | AE29: 7269 | AG29: =I29+T29 -> 0 | AH29: 141 | AK29: 43521 | AL29: =#REF!+#REF! -> 
A30: 5 | E30: 0 | G30: 0 | J30: 0 | L30: 0 | O30: 10 | R30: 6419 | U30: 139 | X30: 39897.08 | AB30: 10 | AE30: 6419 | AG30: =I30+T30 -> 0 | AH30: 139 | AK30: 39897.08 | AL30: =#REF!+#REF! -> 
A31: 6 | E31: 0 | G31: 0 | J31: 0 | L31: 0 | O31: 11 | R31: 6418 | U31: 135 | X31: 41447 | AB31: 11 | AE31: 6418 | AG31: =I31+T31 -> 0 | AH31: 135 | AK31: 41447 | AL31: =#REF!+#REF! -> 
A32: =A31&"/"&A26 -> 6/元 | E32: 0 | G32: 0 | J32: 0 | L32: 0 | O32: =O31/O26*100 -> 91.66666667 | R32: =R31/R26*100 -> 94.8008709 | U32: =U31/U26*100 -> 105.46875 | X32: =X31/X26*100 -> 108.6963363 | AB32: =AB31/AB26*100 -> 91.66666667 | AE32: =AE31/AE26*100 -> 94.8008709 | AH32: =AH31/AH26*100 -> 105.46875 | AK32: =AK31/AK26*100 -> 108.6963363
A34: （注） | C34: １． 北海道運輸局資料による
C35: ２． その他は、油送船・引船・はしけ・台船の合計
C36: ="３． "&A32&"は令和"&A26&"年度を１００として表している" -> ３． 6/元は令和元年度を１００として表している

Sheet 貨物１３．（１）
A1: １３．港 湾 運 送 事 業
A3: （１） 港湾運送事業者数
L4: （令和7年3月31日現在）
A5: 港 湾 | G5: 小 樽 | H5: 函 館 | I5: 室 蘭 | J5: 苫小牧 | K5: 釧 路 | L5: 留 萌 | M5: 稚 内 | N5: 合 計
A6: 許可種別
A7: 一般港湾運送 | G7: 2 | H7: 2 | I7: 6 | J7: 6 | K7: 3 | L7: 2 | M7: 2 | N7: =SUM(G7:M7) -> 23
B8: 無限定 | G8: 2 | H8: 2 | I8: 4 | J8: 4 | K8: 3 | L8: 1 | M8: 1 | N8: 17
B9: いかだ限定 | N9: 0
B10: その他限定 | I10: 2 | J10: 2 | L10: 1 | M10: 1 | N10: 6
A11: 港湾荷役 | G11: 6 | H11: 4 | I11: 7 | J11: 8 | K11: 6 | L11: 2 | M11: 1 | N11: 34
B12: 一貫 | G12: 2 | H12: 3 | I12: 6 | J12: 6 | K12: 3 | L12: 2 | M12: 1 | N12: 23
B13: 船内 | H13: 1 | K13: 1 | N13: 2
B14: 沿岸 | G14: 4 | I14: 1 | J14: 2 | K14: 2 | N14: 9
A15: はしけ運送 | I15: 1 | N15: 1
A16: いかだ運送 | K16: 1 | N16: 1
A17: 合計（許可数） | G17: =SUM(G11+G7+G15+G16) -> 8 | H17: 6 | I17: 14 | J17: 14 | K17: 10 | L17: 4 | M17: 3 | N17: 59
A18: 事業者数（支店参入含む） | G18: 6 | H18: 4 | I18: 8 | J18: 10 | K18: 6 | L18: 2 | M18: 2 | N18: 38
A19: 検数事業（届出人数） | N19: 102
A20: 鑑定事業（届出人数） | N20: 17
A21: 検量事業（届出人数） | N21: 101
A22: 主たる事業所所在地 | G22: 札幌１、 苫小牧４、 室蘭１
A23: 港湾運送関連事業
B24: 固定 | G24: 8 | H24: 2 | I24: 16 | J24: 42 | K24: 10 | L24: 1 | M24: 3 | N24: =SUM(G24:M24) -> 82
B25: 区画 | G25: 8 | H25: 2 | I25: 16 | J25: 39 | K25: 10 | L25: 1 | M25: 3 | N25: 79
B26: 荷造 | G26: 7 | H26: 3 | I26: 19 | J26: 46 | K26: 11 | L26: 1 | M26: 4 | N26: 91
B27: 荷直 | G27: 10 | H27: 3 | I27: 19 | J27: 47 | K27: 11 | L27: 1 | M27: 4 | N27: 95
B28: 清掃 | G28: 8 | H28: 2 | I28: 10 | J28: 32 | K28: 10 | L28: 1 | M28: 3 | N28: 66
B29: 警備 | G29: 3 | H29: 3 | I29: 9 | J29: 12 | K29: 6 | L29: 1 | M29: 1 | N29: 35
A30: 合計（業種数） | G30: =SUM(G24:G29) -> 44 | H30: 15 | I30: 89 | J30: 218 | K30: 58 | L30: 6 | M30: 18 | N30: 448
A31: 事業者数（支店参入含む） | G31: 11 | H31: 3 | I31: 21 | J31: 63 | K31: 11 | L31: 1 | M31: 4 | N31: 114
A33: （注） | C33: １． 北海道運輸局資料による
C34: ２． 港湾荷役の船内、沿岸は、港湾運送事業法改正（昭和５９年法律第５９号）に伴い、
C35: 同法附則第３項の規定による届出のあった旧船内荷役事業、旧沿岸荷役事業をいう

Sheet 貨物１３．（２）
A3: （２） 港湾別船舶積卸し量の推移（港運全体）
J4: （単位 ： 千フレート・トン、％）
C5: 港別 | D5: 小 樽 | E5: 函 館 | F5: 室 蘭 | G5: 苫小牧 | H5: 釧 路 | I5: 留 萌 | J5: 稚 内 | K5: 合 計 | L5: 前 年 対 比
A6: 年度 | B6: 項目
A7: 元 | B7: 輸出入 | D7: 597 | E7: 312 | F7: 7390 | G7: 14496 | H7: 3320 | I7: 255 | J7: 4 | K7: 26374 | L7: 101.473587
B8: 移出入 | D8: 25 | E8: 251 | F8: 1962 | G8: 34227 | H8: 14103 | I8: 71 | J8: 8 | K8: 50647 | L8: 99.46581826
B9: 計 | D9: 622 | E9: 563 | F9: 9352 | G9: 48723 | H9: 17423 | I9: 326 | J9: 12 | K9: 77021 | L9: 100.1443245
A10: 2 | B10: 輸出入 | D10: 606 | E10: 327 | F10: 4784 | G10: 12827 | H10: 3380 | I10: 297 | J10: 3 | K10: 22224 | L10: 84.26480625
B11: 移出入 | D11: 17 | E11: 537 | F11: 1798 | G11: 34539 | H11: 14372 | I11: 58 | J11: 6 | K11: 51327 | L11: 101.3426264
B12: 計 | D12: 623 | E12: 864 | F12: 6582 | G12: 47366 | H12: 17752 | I12: 355 | J12: 9 | K12: 73551 | L12: 95.4947352
A13: 3 | B13: 輸出入 | D13: 543 | E13: 167 | F13: 7845 | G13: 13815 | H13: 3408 | I13: 191 | J13: 38 | K13: 26007 | L13: 117.0221382
B14: 移出入 | D14: 21 | E14: 639 | F14: 2157 | G14: 35001 | H14: 13440 | I14: 88 | J14: 8 | K14: 51354 | L14: 100.0526039
B15: 計 | D15: 564 | E15: 806 | F15: 10002 | G15: 48816 | H15: 16848 | I15: 279 | J15: 46 | K15: 77361 | L15: 105.1800791
A16: 4 | B16: 輸出入 | D16: 568 | E16: 146 | F16: 6698 | G16: 13555 | H16: 3136 | I16: 151 | J16: 187 | K16: 24441 | L16: 93.97854424
B17: 移出入 | D17: 31 | E17: 527 | F17: 2031 | G17: 35675 | H17: 13022 | I17: 123 | J17: 6 | K17: 51415 | L17: 100.1187833
B18: 計 | D18: 599 | E18: 673 | F18: 8729 | G18: 49230 | H18: 16158 | I18: 274 | J18: 193 | K18: 75856 | L18: 98.0545753
A19: 5 | B19: 輸出入 | D19: 565 | E19: 155 | F19: 6573 | G19: 11520 | H19: 2922 | I19: 144 | J19: 183 | K19: 22062 | L19: 90.26635571
B20: 移出入 | D20: 20 | E20: 427 | F20: 2179 | G20: 34784 | H20: 12195 | I20: 87 | J20: 6 | K20: 49698 | L20: 96.66050763
B21: 計 | D21: 585 | E21: 582 | F21: 8752 | G21: 46304 | H21: 15117 | I21: 231 | J21: 189 | K21: 71760 | L21: 94.6002953
A22: 6 | B22: 輸出入 | D22: 584 | E22: 177 | F22: 6588 | G22: 12411 | H22: 3030 | I22: 179 | J22: 77 | K22: =SUM(D22:J22) -> 23046 | L22: =K22/K19*100 -> 104.4601577
B23: 移出入 | D23: 22 | E23: 563 | F23: 2287 | G23: 35808 | H23: 12418 | I23: 57 | J23: 6 | K23: =SUM(D23:J23) -> 51161 | L23: =K23/K20*100 -> 102.9437804
B24: 計 | D24: =SUM(D22:D23) -> 606 | E24: 740 | F24: 8875 | G24: 48219 | H24: 15448 | I24: 236 | J24: 83 | K24: 74207 | L24: =K24/K21*100 -> 103.4099777
A26: （注） | C26: １． 北海道運輸局で集計している港湾荷役実績（船舶積卸し実績）
C27: なお、港湾荷役実績とは指定港（北海道は上記の７港）で港湾運送事業者が作業を
C28: 行った荷役の実績

Sheet 貨物１３．（３）
A3: （３） 港湾別船舶積卸し量の推移（コンテナ）
J4: （単位 ： 千フレート・トン、％）
C5: 港別 | D5: 小 樽 | E5: 函 館 | F5: 室 蘭 | G5: 苫小牧 | H5: 釧 路 | I5: 留 萌 | J5: 稚 内 | K5: 合 計 | L5: 前 年 対 比
A6: 年度 | B6: 項目
A7: 元 | B7: 輸出入 | D7: 407 | E7: 171 | F7: 134 | G7: 7508 | H7: 995 | I7: 0 | J7: 0 | K7: 9215 | L7: 112.6665852
B8: 移出入 | D8: 0 | E8: 81 | F8: 0 | G8: 1666 | H8: 641 | I8: 0 | J8: 0 | K8: 2388 | L8: 107.8103837
B9: 計 | D9: 407 | E9: 252 | F9: 134 | G9: 9174 | H9: 1636 | I9: 0 | J9: 0 | K9: 11603 | L9: 111.6317106
A10: 2 | B10: 輸出入 | D10: 431 | E10: 145 | F10: 57 | G10: 6237 | H10: 1010 | I10: 0 | J10: 0 | K10: 7880 | L10: 85.51275095
B11: 移出入 | D11: 0 | E11: 177 | F11: 3 | G11: 2340 | H11: 729 | I11: 0 | J11: 0 | K11: 3249 | L11: 136.0552764
B12: 計 | D12: 431 | E12: 322 | F12: 60 | G12: 8577 | H12: 1739 | I12: 0 | J12: 0 | K12: 11129 | L12: 95.91484961
A13: 3 | B13: 輸出入 | D13: 379 | E13: 8 | F13: 210 | G13: 6847 | H13: 879 | I13: 0 | J13: 0 | K13: 8323 | L13: 105.6218274
B14: 移出入 | D14: 0 | E14: 179 | F14: 0 | G14: 1312 | H14: 710 | I14: 0 | J14: 0 | K14: 2201 | L14: 67.74392121
B15: 計 | D15: 379 | E15: 187 | F15: 210 | G15: 8159 | H15: 1589 | I15: 0 | J15: 0 | K15: 10524 | L15: 94.56375236
A16: 4 | B16: 輸出入 | D16: 425 | E16: 0 | F16: 162 | G16: 6461 | H16: 692 | I16: 0 | J16: 0 | K16: 7740 | L16: 92.99531419
B17: 移出入 | D17: 0 | E17: 174 | F17: 0 | G17: 1274 | H17: 740 | I17: 0 | J17: 0 | K17: 2188 | L17: 99.40935938
B18: 計 | D18: 425 | E18: 174 | F18: 162 | G18: 7735 | H18: 1432 | I18: 0 | J18: 0 | K18: 9928 | L18: 94.33675409
A19: 5 | B19: 輸出入 | D19: 432 | E19: 0 | F19: 130 | G19: 5029 | H19: 506 | I19: 0 | J19: 0 | K19: 6097 | L19: 78.77260982
B20: 移出入 | D20: 0 | E20: 72 | F20: 0 | G20: 1205 | H20: 756 | I20: 0 | J20: 0 | K20: 2033 | L20: 92.91590494
B21: 計 | D21: 432 | E21: 72 | F21: 130 | G21: 6234 | H21: 1262 | I21: 0 | J21: 0 | K21: 8130 | L21: 81.88960516
A22: 6 | B22: 輸出入 | D22: 475 | E22: 0 | F22: 124 | G22: 5399 | H22: 558 | I22: 0 | J22: 0 | K22: =SUM(D22:J22) -> 6556 | L22: =K22/K19*100 -> 107.5282926
B23: 移出入 | D23: 0 | E23: 258 | F23: 0 | G23: 1104 | H23: 842 | I23: 0 | J23: 0 | K23: =SUM(D23:J23) -> 2204 | L23: =K23/K20*100 -> 108.411215
B24: 計 | D24: =SUM(D22:D23) -> 475 | E24: 258 | F24: 124 | G24: 6503 | H24: 1400 | I24: 0 | J24: 0 | K24: 8760 | L24: =K24/K21*100 -> 107.7490775
A26: （注） | C26: １． 北海道運輸局資料による
C27: ２． 12ﾌｨｰﾄｺﾝﾃﾅは19.2トン、20ﾌｨｰﾄｺﾝﾃﾅは32トン、40ﾌｨｰﾄｺﾝﾃﾅは64トンで換算

Sheet 貨物１４．（１）
A1: １４．航 空 輸 送 実 績
A3: （１） 航空貨物輸送量の推移
AN4: （単位：トン、％）
B5: 空港名 | C5: 新千歳 | F5: 丘 珠 | I5: 函 館 | L5: 釧 路 | O5: 旭 川 | R5: 女満別 | U5: 帯 広 | X5: 稚 内 | AA5: 中標津 | AD5: 奥 尻 | AG5: 紋 別 | AJ5: 利 尻 | AM5: 礼 文 | AP5: 合 計
A6: 年 度
A7: 元 | C7: 152961 | F7: 4 | I7: 5730 | L7: 2319 | O7: 5390 | R7: 1468 | U7: 1917 | X7: 81 | AA7: 240 | AD7: 3 | AG7: 1 | AJ7: 1 | AM7: － | AP7: 170115
A8: 2 | C8: 89911 | F8: 4 | I8: 2354 | L8: 1135 | O8: 1605 | R8: 949 | U8: 580 | X8: 11 | AA8: 56 | AD8: 4 | AG8: 1 | AJ8: 0 | AM8: － | AP8: 96610
A9: 3 | C9: 103323 | F9: 4 | I9: 2897 | L9: 947 | O9: 1903 | R9: 946 | U9: 356 | X9: 32 | AA9: 95 | AD9: 4 | AG9: 2 | AJ9: 0 | AM9: － | AP9: 110509
A10: 4 | C10: 119684 | F10: 4 | I10: 3279 | L10: 1521 | O10: 3192 | R10: 987 | U10: 2827 | X10: 70 | AA10: 136 | AD10: 4 | AG10: 1 | AJ10: 1 | AM10: － | AP10: 131706
A11: 5 | C11: 126167 | F11: 5 | I11: 3465 | L11: 1504 | O11: 3982 | R11: 925 | U11: 1279 | X11: 65 | AA11: 144 | AD11: 5 | AG11: 3 | AJ11: 1 | AM11: － | AP11: 137545
A12: 6 | C12: 155378 | F12: 6 | I12: 3298 | L12: 1318 | O12: 3118 | R12: 1631 | U12: 488 | X12: 58 | AA12: 218 | AD12: 4 | AG12: 5 | AJ12: 1 | AP12: =SUM(C12:AL12) -> 165523
A13: （指数） | C13: （ | D13: =C12/$AP$12*100 -> 93.87094241 | E13: ） | F13: （ | G13: =F12/$AP$12*100 -> 0.003624873885 | H13: ） | I13: （ | J13: =I12/$AP$12*100 -> 1.992472345 | K13: ） | L13: （ | M13: =L12/$AP$12*100 -> 0.7962639633 | N13: ） | O13: （ | P13: =O12/$AP$12*100 -> 1.883726129 | Q13: ） | R13: （ | S13: =R12/$AP$12*100 -> 0.985361551 | T13: ） | U13: （ | V13: =U12/$AP$12*100 -> 0.2948230759 | W13: ） | X13: （ | Y13: =X12/$AP$12*100 -> 0.03504044755 | Z13: ） | AA13: （ | AB13: =AA12/$AP$12*100 -> 0.1317037511 | AC13: ） | AD13: （ | AE13: =AD12/$AP$12*100 -> 0.00241658259 | AF13: ） | AG13: （ | AH13: =AG12/$AP$12*100 -> 0.003020728237 | AI13: ） | AJ13: （ | AK13: =AJ12/$AP$12*100 -> 0.0006041456474 | AL13: ） | AM13: （ | AN13: － | AO13: ） | AP13: （ | AQ13: 100 | AR13: ）
A14: =A12&"／"&A7 -> 6／元 | C14: =C12/C7*100 -> 101.5801413 | F14: =F12/F7*100 -> 150 | I14: =I12/I7*100 -> 57.55671902 | L14: =L12/L7*100 -> 56.8348426 | O14: =O12/O7*100 -> 57.84786642 | R14: =R12/R7*100 -> 111.1035422 | U14: =U12/U7*100 -> 25.45644236 | X14: =X12/X7*100 -> 71.60493827 | AA14: =AA12/AA7*100 -> 90.83333333 | AD14: =AD12/AD7*100 -> 133.3333333 | AG14: =AG12/AG7*100 -> 500 | AJ14: =AJ12/AJ7*100 -> 100 | AM14: － | AP14: =AP12/AP7*100 -> 97.30064956
A16: （注） | B16: １． 「航空輸送統計年報」による
B17: ="２． "&A14&"は令和"&A7&"年度を１００と表している" -> ２． 6／元は令和元年度を１００と表している

Sheet 貨物１４．（２）１道内
A2: （２） 航空路線別貨物輸送量の推移
B4: 道 内
J5: （単位 ： トン、％）
A6: 年度 | B6: 区分 | C6: 札 幌 | D6: 札 幌 | E6: 札 幌 | F6: 札 幌 | G6: 札 幌 | H6: 札 幌 | I6: 釧 路 | J6: 函 館 | K6: 函 館
C8: ～ | D8: ～ | E8: ～ | F8: ～ | G8: ～ | H8: ～ | I8: ～ | J8: ～ | K8: ～
C10: 稚 内 | D10: 釧 路 | E10: 函 館 | F10: 利 尻 | G10: 中標津 | H10: 女満別 | I10: 函 館 | J10: 旭 川 | K10: 奥 尻
A11: 元 | C11: 3 | D11: 64 | E11: 14 | F11: 2 | G11: 8 | H11: 15 | I11: － | J11: － | K11: 4
A12: 2 | C12: 4 | D12: 33 | E12: 4 | F12: 0 | G12: 31 | H12: 16 | I12: － | J12: － | K12: 2
A13: 3 | C13: 5 | D13: 7 | E13: 2 | F13: 0 | G13: 7 | H13: 7 | I13: － | J13: － | K13: 4
A14: 4 | C14: 1.21 | D14: 12.071 | E14: 3.576 | F14: 0.626 | G14: 4.534 | H14: 23.363 | I14: － | J14: － | K14: 3.211
A15: 5 | C15: 1 | D15: 22 | E15: 5 | F15: 1 | G15: 2 | H15: 4 | I15: － | J15: － | K15: 7
A16: 6 | C16: 1 | D16: 21 | E16: 4 | F16: 1 | G16: 14 | H16: 37 | K16: 4
A17: =A16&"／"&A11 -> 6／元 | C17: =C16/C11*100 -> 33.33333333 | D17: 32.8125 | E17: 28.57142857 | F17: 50 | G17: 175 | H17: 246.6666667 | I17: － | J17: － | K17: =K16/K11*100 -> 100
A20: （注） | C20: １． 「航空輸送統計年報」による
C21: ２． 札幌とは、新千歳・丘珠両空港の合計値
C22: ="３． "&A17&"は令和"&A11&"年度を１００と表している" -> ３． 6／元は令和元年度を１００と表している

Sheet 貨物１４．（２）２道外間
B2: 対 道 外 間
S3: （ 単 位 ： ト ン 、 ％ ）
A4: 年度 | B4: 区分 | C4: 稚 内 | D4: 釧 路 | E4: 釧 路 | F4: 釧 路 | G4: 函 館 | H4: 函 館 | I4: 函 館 | J4: 旭 川 | K4: 旭 川 | L4: 旭 川 | M4: 帯 広 | N4: 帯 広 | O4: 中標津 | P4: 紋 別 | Q4: 女満別 | R4: 女満別 | S4: 女満別
C6: ～ | D6: ～ | E6: ～ | F6: ～ | G6: ～ | H6: ～ | I6: ～ | J6: ～ | K6: ～ | L6: ～ | M6: ～ | N6: ～ | O6: ～ | P6: ～ | Q6: ～ | R6: ～ | S6: ～
C8: 東 京 | D8: 東 京 | E8: 名古屋 | F8: 大 阪 | G8: 東 京 | H8: 名古屋 | I8: 大 阪 | J8: 東 京 | K8: 名古屋 | L8: 大 阪 | M8: 東 京 | N8: 大 阪 | O8: 東 京 | P8: 東 京 | Q8: 東 京 | R8: 名古屋 | S8: 大 阪
A9: 元 | C9: 79 | D9: 2075 | E9: － | F9: 1 | G9: 5609 | H9: 46 | I9: 58 | J9: 5358 | K9: 28 | L9: 6 | M9: 1918 | N9: － | O9: 233 | P9: 1 | Q9: 1434 | R9: 7 | S9: 14
A10: 2 | C10: 7 | D10: 1102 | E10: － | F10: 0 | G10: 2131 | H10: 75 | I10: 141 | J10: 1598 | K10: 1 | L10: 6 | M10: 580 | N10: － | O10: 24 | P10: 0 | Q10: 931 | R10: 0 | S10: 2
A11: 3 | C11: 27 | D11: 938 | E11: － | F11: 1 | G11: 2685 | H11: 86 | I11: 119 | J11: 1901 | K11: 2 | L11: 0 | M11: 356 | N11: － | O11: 89 | P11: 2 | Q11: 938 | R11: 0 | S11: 1
A12: 4 | C12: 69.203 | D12: 1508.817 | E12: － | F12: 0 | G12: 3046.554 | H12: 88.079 | I12: 137.57 | J12: 3185.895 | K12: 3.492 | L12: 2.851 | M12: 2827.195 | N12: － | O12: 133.003 | P12: 0.701 | Q12: 961.507 | R12: 1.567 | S12: 0.75
A13: 5 | C13: 65 | D13: 1482 | E13: － | F13: 0 | G13: 2422 | H13: 102 | I13: 292 | J13: 3974 | K13: 1 | L13: 3 | M13: 1279 | N13: － | O13: 127 | P13: 3 | Q13: 875 | R13: 1 | S13: 6
A14: 6 | C14: 57 | D14: 1442 | E14: － | F14: 0 | G14: 3110 | H14: 86 | I14: 380 | J14: 4247 | K14: 4 | L14: 1 | M14: 488 | N14: － | O14: 205 | P14: 5 | Q14: 924 | R14: 3 | S14: 1
A15: =A14&"／"&A9 -> 6／元 | C15: =C14/C9*100 -> 72.15189873 | D15: =D14/D9*100 -> 69.4939759 | E15: － | F15: =F14/F9*100 -> 0 | G15: 55.44660367 | H15: 186.9565217 | I15: 655.1724138 | J15: 79.26465099 | K15: 14.28571429 | L15: 16.66666667 | M15: 25.44316997 | N15: － | O15: =O14/O9*100 -> 87.98283262 | P15: =P14/P9*100 -> 500 | Q15: =Q14/Q9*100 -> 64.43514644 | R15: =R14/R9*100 -> 42.85714286 | S15: =S14/S9*100 -> 7.142857143
T17: （ 単 位 ： ト ン 、 ％ ）
A18: 年度 | B18: 区分 | C18: 札 幌 | D18: 札 幌 | E18: 札 幌 | F18: 札 幌 | G18: 札 幌 | H18: 札 幌 | I18: 札 幌 | J18: 札 幌 | K18: 札 幌 | L18: 札 幌 | M18: 札 幌 | N18: 札 幌 | O18: 札 幌 | P18: 札 幌 | Q18: 札 幌 | R18: 札 幌 | S18: 札 幌 | T18: 札 幌
C20: ～ | D20: ～ | E20: ～ | F20: ～ | G20: ～ | H20: ～ | I20: ～ | J20: ～ | K20: ～ | L20: ～ | M20: ～ | N20: ～ | O20: ～ | P20: ～ | Q20: ～ | R20: ～ | S20: ～ | T20: ～
C22: 青 森 | D22: 花 巻 | E22: 仙 台 | F22: 秋 田 | G22: 福 島 | H22: 東 京 | I22: 新 潟 | J22: 富 山 | K22: 小 松 | L22: 静 岡 | M22: 名古屋 | N22: 大 阪 | O22: 神 戸 | P22: 岡 山 | Q22: 広 島 | R22: 松 山 | S22: 福 岡 | T22: 那 覇
A23: =$A$9 -> 元 | C23: 28 | D23: 6 | E23: 391 | F23: 2 | G23: 40 | H23: 134861 | I23: 12 | J23: 39 | K23: 46 | L23: 228 | M23: 3176 | N23: 8436 | O23: － | P23: 68 | Q23: 275 | R23: － | S23: 5061 | T23: 192
A24: =$A$10 -> 2 | C24: 19 | D24: 1 | E24: 298 | F24: 2 | G24: 8 | H24: 76949 | I24: 17 | J24: 0 | K24: 3 | L24: 28 | M24: 2461 | N24: 4909 | O24: － | P24: 0 | Q24: 459 | R24: － | S24: 4620 | T24: 53
A25: =$A$11 -> 3 | C25: 4 | D25: 6 | E25: 248 | F25: 2 | G25: 1 | H25: 85644 | I25: 9 | J25: 2 | K25: 7 | L25: 1 | M25: 2652 | N25: 6468 | O25: － | P25: 0 | Q25: 70 | R25: － | S25: 8169 | T25: 14
A26: =$A$12 -> 4 | C26: 6.219 | D26: 3.084 | E26: 271.266 | F26: 1.915 | G26: 1.132 | H26: 107097.071 | I26: 5.502 | J26: 14.736 | K26: 61.942 | L26: 7.177 | M26: 2215.971 | N26: 5437.831 | O26: － | P26: 1.329 | Q26: 230.804 | R26: － | S26: 4285.831 | T26: 0.03
A27: =$A$13 -> 5 | C27: 6 | D27: 25 | E27: 242 | F27: 1 | G27: 1 | H27: 112576 | I27: 6 | J27: 18 | K27: 48 | L27: 29 | M27: 1927 | N27: 7091 | O27: － | P27: 26 | Q27: 151 | R27: － | S27: 3907 | T27: 0
A28: =$A$14 -> 6 | C28: 7 | D28: 26 | E28: 233 | F28: 1 | G28: 1 | H28: 140289 | I28: 10 | J28: 22 | K28: 42 | L28: 62 | M28: 1849 | N28: 8354 | O28: － | P28: 157 | Q28: 143 | R28: － | S28: 3288 | T28: 0
A29: =$A$15 -> 6／元 | C29: =C28/C23*100 -> 25 | D29: 433.3333333 | E29: 59.59079284 | F29: 50 | G29: 2.5 | H29: 104.0248849 | I29: 83.33333333 | J29: 56.41025641 | K29: 91.30434783 | L29: 27.19298246 | M29: 58.21788413 | N29: 99.02797534 | O29: － | P29: =P28/P23*100 -> 230.8823529 | Q29: =Q28/Q23*100 -> 52 | R29: － | S29: =S28/S23*100 -> 64.96739775 | T29: =T28/T23*100 -> 0
A31: （注） １．「航空輸送統計年報」による
A32: ２．札幌とは、新千歳・丘珠両空港の合計値
A33: ３．東京とは、成田・羽田両空港の合計値
A34: ４．大阪とは、関西・大阪（伊丹）両空港の合計値
A35: ５．名古屋とは、中部・名古屋（小牧）両空港の合計値
A36: =" ６．"&A29&"は令和"&A23&"年度を１００と表している" -> ６．6／元は令和元年度を１００と表している

Sheet 貨物１５．（１）
A1: １５．北海道を中心とするフェリー航路の概要
A3: （１） フェリー航路
K4: （令和7年9月30日現在）
A5: 航 路 （経 路） | B5: 距 離 | D5: 所 要 時 間 | G5: 運 航 回 数 | H5: 事業開始 | K5: 事 業 者
B6: ㎞ | D6: 時間 | F6: 分 | H6: 年 月
A7: 函館～大間 | B7: 40 | E7: １．３０ | G7: １日２往復 | H7: Ｈ | I7: 20.12 | K7: 津軽海峡フェリー(株)
A9: 函館～青森 | B9: 113 | E9: ３．４０ | G9: １日６往復 | H9: Ｈ | I9: 12.10 | K9: 津軽海峡フェリー(株)
A11: 函館～青森 | B11: 113 | E11: ３．５０ | G11: １日８往復 | H11: Ｈ | I11: 12.10 | K11: 青函フェリー(株)
A13: 室蘭～青森 | B13: 204 | E13: ７．００ | G13: １日１往復 | H13: Ｒ | I13: 5.10 | K13: 津軽海峡フェリー(株)
A15: 苫小牧～八戸 | B15: 242 | E15: ８．００ | G15: １日４往復 | H15: Ｓ | I15: 48.4 | K15: 川崎近海汽船(株)
A17: 室蘭～八戸～宮古（休止中） | B17: 354 | E17: １１．０５ | G17: １日１往復 | H17: Ｈ | I17: 30.6 | K17: 川崎近海汽船(株)
B18: 〔333〕 | E18: 〔１０．００〕
A19: 苫小牧～仙台～名古屋 | B19: 1330 | E19: ３９．３０ | G19: ２日１往復 | H19: Ｓ | I19: 48.4 | K19: 太平洋フェリー(株)
A21: 苫小牧～仙台 | B21: 560 | E21: １５．００ | G21: １日１往復 | H21: Ｓ | I21: 48.4 | K21: 太平洋フェリー(株)
A23: 苫小牧～大洗 | B23: 755 | E23: １８．００ | G23: １日１往復 | H23: Ｈ | I23: 13.7 | K23: 商船三井フェリー(株)
A25: 小樽～舞鶴 | B25: 1061 | E25: ２０．４５ | G25: １日１往復 | H25: Ｈ | I25: 15.6 | K25: 新日本海フェリー(株)
A27: 小樽～敦賀 | B27: 1022 | E27: ２０．３５ | G27: 臨時運航あり | H27: Ｈ | I27: 15.6 | K27: 新日本海フェリー(株)
A29: 小樽～新潟 | B29: 704 | E29: １６．１５ | G29: 週５往復 | H29: Ｈ | I29: 15.6 | K29: 新日本海フェリー(株)
A31: 苫小牧～秋田～新潟～敦賀 | B31: 1074 | E31: ３１．２０ | G31: 週１往復 | H31: Ｈ | I31: 15.6 | K31: 新日本海フェリー(株)
A33: 苫小牧～敦賀（直行便） | B33: 948 | E33: ２０．３５ | G33: １日１往復 | H33: Ｈ | I33: 15.6 | K33: 新日本海フェリー(株)
A35: 苫小牧～秋田～新潟 | B35: 637 | E35: １８．１５ | G35: 週４往復 | H35: Ｈ | I35: 15.6 | K35: 新日本海フェリー(株)
A37: 江差～奥尻 | B37: 61 | E37: ２．１０ | G37: １日１～２往復 | H37: Ｓ | I37: 24.12 | K37: オクシリランドフェリー(株)
A39: 瀬棚～奥尻（休止中） | B39: 43 | E39: １．３５ | G39: ５月１日～１０月１５日 | H39: Ｓ | I39: 52.7 | K39: オクシリランドフェリー(株)
G40: １日１往復
A41: 稚内～利尻 | B41: 52 | E41: １．４０ | G41: １日２～３往復 | H41: Ｓ | I41: 24.12 | K41: ハートランドフェリー(株)
A43: 稚内～礼文 | B43: 59 | E43: １．５５ | G43: １日２～３往復 | H43: Ｓ | I43: 24.12 | K43: ハートランドフェリー(株)
A45: 利尻～礼文 | B45: 19 | E45: ０．４０ | G45: １日１～３往復 | H45: Ｓ | I45: 24.12 | K45: ハートランドフェリー(株)
A47: 羽幌～焼尻～天売 | B47: 35 | E47: １．３５ | G47: １日１～６往復 | H47: Ｓ | I47: 24.12 | K47: 羽幌沿海フェリー(株)
E48: 〔１．００〕
A50: （注） １．北海道運輸局資料による
A51: ２．羽幌～天売航路の〔 〕書きは高速船
A52: ３．室蘭～八戸～宮古の〔 〕書きは宮古発室蘭便（八戸経由せず）
A53: ※令和２年４月より八戸～宮古は休止
A54: ※令和４年２月より室蘭～八戸は休止

Sheet 貨物１５．（２）
A2: （２） 航路別自動車航送の推移
A4: 総 計
A5: 年度 | B5: バ ス （台） | C5: ト ラ ッ ク （台） | D5: 乗 用 車 （台） | E5: 二 輪（台） | F5: 計 （台）
A6: 元 | B6: 4236 | C6: 935268 | D6: 531813 | E6: 76590 | F6: =SUM(F13,F20,F27,F34,F49,F56,F78,F85,F92,F70,F99) -> 1525313
A7: 2 | B7: 1489 | C7: 910099 | D7: 306996 | E7: 38899 | F7: =SUM(F14,F21,F28,F35,F50,F57,F79,F86,F93,F71,F100) -> 1241217
A8: 3 | B8: 1938 | C8: 944348 | D8: 350971 | E8: 45972 | F8: =SUM(F15,F22,F29,F36,F44,F51,F58,F80,F87,F94,F72,F101) -> 1343229
A9: 4 | B9: 3103 | C9: 942582 | D9: 484300 | E9: 73853 | F9: =SUM(F16,F23,F30,F37,F45,F52,F59,F81,F88,F95,F73,F102) -> 1503838
A10: 5 | B10: 4898 | C10: 917731 | D10: 546720 | E10: 78022 | F10: =SUM(F17,F24,F31,F38,F46,F53,F60,F82,F89,F96,F74,F103,F67) -> 1547371
A11: 6 | B11: =SUM(B18,B25,B32,B39,B47,B54,B61,B68,B75,B83,B90,B97,B104) -> 4367 | C11: =SUM(C18,C25,C32,C39,C47,C54,C61,C68,C75,C83,C90,C97,C104) -> 918790 | D11: =SUM(D18,D25,D32,D39,D47,D54,D61,D68,D75,D83,D90,D97,D104) -> 564261 | E11: =SUM(E18,E25,E32,E39,E47,E54,E61,E68,E75,E83,E90,E97,E104) -> 80645 | F11: =SUM(F18,F25,F32,F39,F47,F54,F61,F68,F75,F83,F90,F97,F104) -> 1568063
A12: 小樽～新潟・敦賀・舞鶴航路
A13: =$A$6 -> 元 | B13: 413 | C13: 114349 | D13: 63341 | E13: 19304 | F13: 197407
A14: =$A$7 -> 2 | B14: 267 | C14: 106921 | D14: 31486 | E14: 10298 | F14: 148972
A15: =$A$8 -> 3 | B15: 255 | C15: 110385 | D15: 35832 | E15: 12392 | F15: 158864
A16: =$A$9 -> 4 | B16: 331 | C16: 102710 | D16: 54408 | E16: 19640 | F16: 177089
A17: =$A$10 -> 5 | B17: 646 | C17: 103691 | D17: 65413 | E17: 20557 | F17: 190307
A18: =$A$11 -> 6 | B18: 530 | C18: 106249 | D18: 69158 | E18: 21091 | F18: =SUM(B18:E18) -> 197028
A19: 苫小牧～秋田・新潟・敦賀・舞鶴航路
A20: =$A$6 -> 元 | B20: 355 | C20: 152509 | D20: 50883 | E20: 9267 | F20: 213014
A21: =$A$7 -> 2 | B21: 139 | C21: 145610 | D21: 25907 | E21: 4400 | F21: 176056
A22: =$A$8 -> 3 | B22: 198 | C22: 148162 | D22: 27310 | E22: 4690 | F22: 180360
A23: =$A$9 -> 4 | B23: 228 | C23: 151275 | D23: 42452 | E23: 9147 | F23: 203102
A24: =$A$10 -> 5 | B24: 422 | C24: 144255 | D24: 46353 | E24: 8461 | F24: 199491
A25: =$A$11 -> 6 | B25: 279 | C25: 150846 | D25: 53152 | E25: 9954 | F25: =SUM(B25:E25) -> 214231
A26: 苫小牧～仙台～名古屋航路
A27: =$A$6 -> 元 | B27: 289 | C27: 82928 | D27: 82706 | E27: 9387 | F27: 175310
A28: =$A$7 -> 2 | B28: 116 | C28: 81096 | D28: 64336 | E28: 4512 | F28: 150060
A29: =$A$8 -> 3 | B29: 216 | C29: 88094 | D29: 71609 | E29: 5408 | F29: 165327
A30: =$A$9 -> 4 | B30: 322 | C30: 89582 | D30: 89740 | E30: 8872 | F30: 188516
A31: =$A$10 -> 5 | B31: 549 | C31: 85629 | D31: 94134 | E31: 9716 | F31: 190028
A32: =$A$11 -> 6 | B32: 460 | C32: 88546 | D32: 90814 | E32: 9293 | F32: =SUM(B32:E32) -> 189113
A33: 苫小牧～八戸航路
A34: =$A$6 -> 元 | B34: 604 | C34: 161173 | D34: 59379 | E34: 4713 | F34: 225869
A35: =$A$7 -> 2 | B35: 241 | C35: 156707 | D35: 32961 | E35: 2010 | F35: 191919
A36: =$A$8 -> 3 | B36: 400 | C36: 165556 | D36: 39165 | E36: 2307 | F36: 207428
A37: =$A$9 -> 4 | B37: 564 | C37: 173942 | D37: 53466 | E37: 3929 | F37: 231901
A38: =$A$10 -> 5 | B38: 873 | C38: 170033 | D38: 62726 | E38: 4747 | F38: 238379
A39: =$A$11 -> 6 | B39: 784 | C39: 162027 | D39: 63727 | E39: 4720 | F39: =SUM(B39:E39) -> 231258
A40: 室蘭～宮古航路
A41: 年度 | B41: バ ス （台） | C41: ト ラ ッ ク （台） | D41: 乗 用 車 （台） | E41: 二 輪（台） | F41: 計 （台）
A42: =$A$6 -> 元 | B42: 27 | C42: 10478 | D42: 10842 | E42: 1247 | F42: 22594
A43: =$A$7 -> 2 | B43: 8 | C43: 14901 | D43: 1192 | E43: 165 | F43: 16266
A44: =$A$8 -> 3 | B44: 2 | C44: 15028 | D44: 945 | E44: 110 | F44: 16085
A45: =$A$9 -> 4 | B45: 0 | C45: 0 | D45: 0 | E45: 0 | F45: 0
A46: =$A$10 -> 5 | B46: 0 | C46: 0 | D46: 0 | E46: 0 | F46: 0
A47: =$A$11 -> 6 | B47: 0 | C47: 0 | D47: 0 | E47: 0 | F47: =SUM(B47:E47) -> 0
A48: 函館～大間航路
A49: =$A$6 -> 元 | B49: 270 | C49: 812 | D49: 28565 | E49: 4239 | F49: 33886
A50: =$A$7 -> 2 | B50: 173 | C50: 784 | D50: 15309 | E50: 2278 | F50: 18544
A51: =$A$8 -> 3 | B51: 193 | C51: 834 | D51: 17447 | E51: 2726 | F51: 21200
A52: =$A$9 -> 4 | B52: 268 | C52: 1029 | D52: 27279 | E52: 4034 | F52: 32610
A53: =$A$10 -> 5 | B53: 374 | C53: 1138 | D53: 30557 | E53: 4375 | F53: 36444
A54: =$A$11 -> 6 | B54: 398 | C54: 1182 | D54: 32439 | E54: 4459 | F54: =SUM(B54:E54) -> 38478
A55: 函館～青森航路
A56: =$A$6 -> 元 | B56: 729 | C56: 232584 | D56: 140834 | E56: 10901 | F56: 385048
A57: =$A$7 -> 2 | B57: 268 | C57: 229414 | D57: 68628 | E57: 4722 | F57: 303032
A58: =$A$8 -> 3 | B58: 400 | C58: 236569 | D58: 81150 | E58: 5346 | F58: 323465
A59: =$A$9 -> 4 | B59: 691 | C59: 244001 | D59: 121529 | E59: 8703 | F59: 374924
A60: =$A$10 -> 5 | B60: 937 | C60: 239596 | D60: 141766 | E60: 9685 | F60: 391984
A61: =$A$11 -> 6 | B61: 843 | C61: 222231 | D61: 142443 | E61: 9283 | F61: =SUM(B61:E61) -> 374800
A62: 室蘭～青森航路
A63: =$A$6 -> 元 | B63: － | C63: － | D63: － | E63: － | F63: 0
A64: =$A$7 -> 2 | B64: － | C64: － | D64: － | E64: － | F64: 0
A65: =$A$8 -> 3 | B65: － | C65: － | D65: － | E65: － | F65: 0
A66: =$A$9 -> 4 | B66: － | C66: － | D66: － | E66: － | F66: 0
A67: =$A$10 -> 5 | B67: 15 | C67: 3267 | D67: 2054 | E67: 84 | F67: 5420
A68: =$A$11 -> 6 | B68: 62 | C68: 11743 | D68: 7430 | E68: 842 | F68: =SUM(B68:E68) -> 20077
A69: 苫小牧～大洗航路
A70: =$A$6 -> 元 | B70: 44 | C70: 153014 | D70: 58063 | E70: 10251 | F70: 221372
A71: =$A$7 -> 2 | B71: 24 | C71: 149294 | D71: 39889 | E71: 5942 | F71: 195149
A72: =$A$8 -> 3 | B72: 26 | C72: 152864 | D72: 47510 | E72: 7250 | F72: 207650
A73: =$A$9 -> 4 | B73: 36 | C73: 154317 | D73: 61086 | E73: 11109 | F73: 226548
A74: =$A$10 -> 5 | B74: 88 | C74: 144364 | D74: 65119 | E74: 11737 | F74: 221308
A75: =$A$11 -> 6 | B75: 38 | C75: 152946 | D75: 63082 | E75: 11410 | F75: =SUM(B75:E75) -> 227476
A76: 稚内～利礼航路
A77: 年度 | B77: バ ス （台） | C77: ト ラ ッ ク （台） | D77: 乗 用 車 （台） | E77: 二 輪（台） | F77: 計 （台）
A78: =$A$6 -> 元 | B78: 1325 | C78: 18961 | D78: 27082 | E78: 5849 | F78: 53217
A79: =$A$7 -> 2 | B79: 198 | C79: 16941 | D79: 19622 | E79: 3610 | F79: 40371
A80: =$A$8 -> 3 | B80: 203 | C80: 17664 | D80: 21598 | E80: 4752 | F80: 44217
A81: =$A$9 -> 4 | B81: 575 | C81: 15799 | D81: 25238 | E81: 6924 | F81: 48536
A82: =$A$10 -> 5 | B82: 839 | C82: 16032 | D82: 29399 | E82: 7102 | F82: 53372
A83: =$A$11 -> 6 | B83: 867 | C83: 15527 | D83: 33560 | E83: 7915 | F83: =SUM(B83:E83) -> 57869
A84: 江差～奥尻航路
A85: =$A$6 -> 元 | B85: 149 | C85: 7327 | D85: 7955 | E85: 877 | F85: 16308
A86: =$A$7 -> 2 | B86: 52 | C86: 7306 | D86: 5695 | E86: 414 | F86: 13467
A87: =$A$8 -> 3 | B87: 39 | C87: 7929 | D87: 6455 | E87: 534 | F87: 14957
A88: =$A$9 -> 4 | B88: 73 | C88: 8792 | D88: 6930 | E88: 707 | F88: 16502
A89: =$A$10 -> 5 | B89: 115 | C89: 8559 | D89: 6931 | E89: 816 | F89: 16421
A90: =$A$11 -> 6 | B90: 90 | C90: 6935 | D90: 6281 | E90: 895 | F90: =SUM(B90:E90) -> 14201
A91: 瀬棚～奥尻航路
A92: =$A$6 -> 元 | B92: 0 | C92: 0 | D92: 0 | E92: 0 | F92: =SUM(B92:E92) -> 0
A93: =$A$7 -> 2 | B93: 0 | C93: 0 | D93: 0 | E93: 0 | F93: 0
A94: =$A$8 -> 3 | B94: 0 | C94: 0 | D94: 0 | E94: 0 | F94: 0
A95: =$A$9 -> 4 | B95: 0 | C95: 0 | D95: 0 | E95: 0 | F95: 0
A96: =$A$10 -> 5 | B96: 0 | C96: 0 | D96: 0 | E96: 0 | F96: 0
A97: =$A$11 -> 6 | B97: 0 | C97: 0 | D97: 0 | E97: 0 | F97: 0
A98: 羽幌～天売・焼尻航路
A99: =$A$6 -> 元 | B99: 31 | C99: 1133 | D99: 2163 | E99: 555 | F99: 3882
A100: =$A$7 -> 2 | B100: 3 | C100: 1125 | D100: 1971 | E100: 548 | F100: 3647
A101: =$A$8 -> 3 | B101: 6 | C101: 1263 | D101: 1950 | E101: 457 | F101: 3676
A102: =$A$9 -> 4 | B102: 15 | C102: 1135 | D102: 2172 | E102: 788 | F102: 4110
A103: =$A$10 -> 5 | B103: 40 | C103: 1167 | D103: 2268 | E103: 742 | F103: 4217
A104: =$A$11 -> 6 | B104: 16 | C104: 558 | D104: 2175 | E104: 783 | F104: =SUM(B104:E104) -> 3532
A106: （注） | B106: １．北海道運輸局資料による
B107: ２．室蘭～宮古航路は、令和２年４月１日より八戸～宮古休止、令和４年２月１日より 室蘭～八戸休止となり、全区間運航休止となった。
B109: ３．瀬棚～奥尻航路は、平成３１年４月より運航休止

Sheet 貨物１６．
A1: １６．営業倉庫利用状況の推移
B5: 区分 | C5: １ ～ ３ 類 倉 庫 | AC5: 冷 蔵 倉 庫
A6: 年度 | C6: 倉庫面積 | H6: 在貨面積 | M6: 利用率 | P6: 年間入庫高 | U6: 平均月末残高 | Z6: 回転数 | AC6: 倉庫容積 | AG6: 在貨容積（㎥） | AM6: 営業利用率 | AP6: 全倉庫利用率 | AS6: 年間入庫高 | AW6: 平均月末残高 | BA6: 回転数
C7: （㎡） | H7: （㎡） | M7: （％） | P7: （ ｔ ） | U7: （ ｔ ） | AC7: （㎥） | AG7: 営業貨物 | AJ7: 自家貨物 | AM7: （％） | AP7: （％） | AS7: （ ｔ ） | AW7: （ ｔ ）
A8: 元 | C8: 2243387 | H8: 1509574 | M8: 67.28995042 | P8: 7591065 | U8: 1433023 | Z8: 5.297238774 | AC8: 2580810 | AG8: 770545 | AJ8: 162216 | AM8: 29.85671165 | AP8: 36.14218017 | AS8: 1109096 | AW8: 242453 | BA8: 4.574478353
A9: 2 | C9: 2344695 | H9: 1565335 | M9: 66.76070875 | P9: 7822003 | U9: 1540067 | Z9: 5.079001758 | AC9: 3038509 | AG9: 804206 | AJ9: 195938 | AM9: 26.46712582 | AP9: 32.9156175 | AS9: 1124723 | AW9: 290495 | BA9: 3.871746502
A10: 3 | C10: 2466457 | H10: 1676381 | M10: 67.9671691 | P10: 8317752 | U10: 1451856 | Z10: 5.729047509 | AC10: 2775039 | AG10: 791487 | AJ10: 164867 | AM10: 28.52165321 | AP10: 34.46272287 | AS10: 1121584 | AW10: 275395 | BA10: 4.072637484
A11: 4 | C11: 2466457 | H11: 1676381 | M11: 67.9671691 | P11: 8610475 | U11: 1500429 | Z11: 5.738675406 | AC11: 2832784 | AG11: 811813 | AJ11: 188626 | AM11: 28.65777977 | AP11: 35.316459 | AS11: 1189952 | AW11: 277405 | BA11: 4.289583821
A12: 5 | C12: 2471842 | H12: 1614967 | M12: 65.33455617 | P12: 9664353 | U12: 1777189 | Z12: 5.43799956 | AC12: 2785547 | AG12: 815163 | AJ12: 154921 | AM12: 29.26401888 | AP12: 34.82561953 | AS12: 1137512 | AW12: 281214 | BA12: 4.045004872
A13: 6 | C13: 2485285 | H13: 1584313 | M13: =H13/C13*100 -> 63.74773919 | P13: 11287591 | U13: 1863427 | Z13: =P13/U13 -> 6.057436648 | AC13: 3144422 | AG13: 905948 | AJ13: 122839 | AM13: =AG13/AC13*100 -> 28.81127279 | AP13: =(AG13+AJ13)/AC13*100 -> 32.71784131 | AS13: 1057633 | AW13: 276779 | BA13: =AS13/AW13 -> 3.821218373
A14: （注） | C14: １．北海道運輸局資料による
C15: ２．倉庫面（容）積及び在貨面（容）積は各年度とも四半期末月の平均数値
C16: ３．冷蔵倉庫以外の倉庫の在貨面（容）積には、自家貨物占有面（容）積は含まない
C17: ４．年間入庫高・平均月末残高には自家貨物は含まない
C18: ５．回転数＝年間入庫高÷平均月末残高
C19: ６．営業利用率＝(営業在貨容積÷倉庫容積)×１００
C20: 全倉庫利用率＝（在貨容積÷倉庫容積）×１００
C21: ※全倉庫利用率の在貨容積は営業と自家の在貨容積を足した数値
